Workbook

Sheet Menu
Z1: 3
Z4: 2
A6: East Texas Extension District - 5
D8: Budgets
D11: Forage Crops
D13: =+CoastalEstablish!A3 -> Coastal Bermudagrass Establishment
D14: =LargeRoundHay!A3 -> Coastal Bermudagrass Hay, Large Bales
D15: =SmallSquareHay!A3 -> Coastal Bermudagrass Hay, Small Square Bales (60 lbs.)
D16: =CoastalPasture!A3 -> Coastal Bermudagrass Pasture Grazing
D17: =CoastalOverseed!A3 -> Coastal Bermudagrass Pasture, Overseeded Rye and Ryegrass
B18: Comparative Returns | D18: =SmallGrainPasture!A3 -> Small Grains - Ryegrass Winter Pasture
B20: Links | D20: Livestock
D22: =+CowCalf!A3 -> Cow-Calf Production
D23: =Stockers!A3 -> Stocker Calf Budget
D25: Other Budgets
D27: ='Livestock Budget'!A3 -> Livestock Budget
D28: ='Crop Budget'!A3 -> Crop Enterprise
A45: Developed by Vanessa Olson, Extension Forage Specialist; and, Jason Banta, Extension Beef Cattle Specialist, Texas A&M AgriLife Extension Service. For more information, contact: Vanessa Olson or Jason Banta at 903-834-6191.

Sheet Links
B2: Texas Crop and Livestock Budgets
B3: A Program of the Texas A&M AgriLife Extension Service
B4: Agricultural Economics Department, The Texas A&M University System
B6: Developed by Texas A&M AgriLife Extension Service Economists and Other Specialists
B8: Contact Us | G8: Clickable Logos
B10: Resources
B12: Decision Aids (includes Machinery Cost Estimator)
B14: Custom Rate Survey
B16: Basis Data
B18: Master Marketer
B20: Extension Ag Economics
B22: Department of Agricultural Economics
B24: Menu Page
B26: Links last checked 4/17/2020

Sheet CoastalEstablish
A1: Projections for Planning Purposes Only -- Not to be Used without Updating
A2: 2024 Estimated Costs and Returns per Acre
A3: Coastal Bermudagrass Establishment
A4: Enter your name for this budget in the cell above.
A5: Enter Your Values in the cells highlighed in MAROON.
E6: Your Acres | R6: Your
C7: Crop Acres | D7: 25 | L7: Your | Q7: Enterprise | R7: Enterprise
E8: Your | H8: Your | I8: Cash | J8: Your | K8: Landlord | L8: Landlord | N8: Your | P8: Your | Q8: Total | R8: Total
A9: REVENUE | D9: Quantity | E9: Quantity | F9: Units | G9: $/Unit | H9: $/Unit | I9: Total | J9: Total | K9: Share | L9: Share | M9: Landlord | N9: Landlord | O9: Tenant | P9: Tenant | Q9: (25 acres) | R9: ="(" & E7 & " acres)" -> ( acres)
B10: 0 | D10: 0 | G10: 0 | I10: 0 | J10: =E10*H10 -> 0 | K10: 0 | M10: 0 | N10: =J10*L10 -> 0 | O10: 0 | P10: =+J10-N10 -> 0 | Q10: 0 | R10: =+J10*E$7 -> 0
D11: 0 | G11: 0 | I11: 0 | J11: 0 | K11: 0 | M11: 0 | N11: 0 | O11: 0 | P11: 0 | Q11: 0 | R11: 0
D12: 0 | G12: 0 | I12: 0 | J12: 0 | K12: 0 | M12: 0 | N12: 0 | O12: 0 | P12: 0 | Q12: 0 | R12: 0
A13: Total Revenue | I13: 0 | J13: =SUM(J10:J12) -> 0 | M13: 0 | N13: =SUM(N10:N12) -> 0 | O13: 0 | P13: =SUM(P10:P12) -> 0 | Q13: 0 | R13: =SUM(R10:R12) -> 0
Q14: Enterprise | R14: Enterprise
A15: VARIABLE COSTS | D15: Quantity | E15: Quantity | F15: Units | G15: $/Unit | H15: $/Unit | I15: Total | J15: Total | K15: Share | L15: Share | M15: Landlord | N15: Landlord | O15: Tenant | P15: Tenant | Q15: Total | R15: Total
A16: Production Costs
B17: Fertilizer
C18: Phosphate | D18: 40 | F18: Pound | G18: 0.66 | I18: 26.4 | J18: =E18*H18 -> 0 | K18: 0 | M18: 0 | N18: =J18*L18 -> 0 | O18: 26.4 | P18: =+J18-N18 -> 0 | Q18: 660 | R18: =+J18*E$7 -> 0
C19: Potash | D19: 130 | F19: Pound | G19: 0.3 | I19: 39 | J19: 0 | K19: 0 | M19: 0 | N19: 0 | O19: 39 | P19: 0 | Q19: 975 | R19: 0
C20: Nitrogen | D20: 180 | F20: Pound | G20: 0.55 | I20: 99 | J20: 0 | K20: 0 | M20: 0 | N20: 0 | O20: 99 | P20: 0 | Q20: 2475 | R20: 0
C21: Lime | D21: 1 | F21: Ton | G21: 65 | I21: 65 | J21: 0 | K21: 0 | M21: 0 | N21: 0 | O21: 65 | P21: 0 | Q21: 1625 | R21: 0
B22: Herbicide
C23: Glyphosphate | D23: 256 | F23: Ounce | G23: 0.109375 | I23: 28 | J23: 0 | K23: 0 | M23: 0 | N23: 0 | O23: 28 | P23: 0 | Q23: 700 | R23: 0
C24: Diuron 4L | D24: 2 | F24: Pint | G24: 3.4375 | I24: 6.875 | J24: 0 | K24: 0 | M24: 0 | N24: 0 | O24: 6.875 | P24: 0 | Q24: 171.875 | R24: 0
B25: Seed
C26: Seed - Elbon Rye | D26: 100 | F26: Pound | G26: 0.32 | I26: 32 | J26: 0 | K26: 0 | M26: 0 | N26: 0 | O26: 32 | P26: 0 | Q26: 800 | R26: 0
B27: Custom
C28: Sprigging and Sprigs | D28: 1 | F28: Acre | G28: 100 | I28: 100 | J28: 0 | K28: 0 | M28: 0 | N28: 0 | O28: 100 | P28: 0 | Q28: 2500 | R28: 0
D29: 0 | G29: 0 | I29: 0 | J29: 0 | K29: 0 | M29: 0 | N29: 0 | O29: 0 | P29: 0 | Q29: 0 | R29: 0
D30: 0 | G30: 0 | I30: 0 | J30: 0 | K30: 0 | M30: 0 | N30: 0 | O30: 0 | P30: 0 | Q30: 0 | R30: 0
D31: 0 | G31: 0 | I31: 0 | J31: =E31*H31 -> 0 | K31: 0 | M31: 0 | N31: =J31*L31 -> 0 | O31: 0 | P31: =+J31-N31 -> 0 | Q31: 0 | R31: =+J31*E$7 -> 0
B32: Machinery Labor
C33: Tractors/Self-Propelled | D33: 0.76 | F33: Hour | G33: 17.21 | I33: 13.0796 | J33: =E33*H33 -> 0 | K33: 0 | M33: 0 | N33: =J33*L33 -> 0 | O33: 13.0796 | P33: =+J33-N33 -> 0 | Q33: 326.99 | R33: =+J33*E$7 -> 0
C34: Other Labor | D34: 0 | F34: Hour | G34: 17.21 | I34: 0 | J34: =E34*H34 -> 0 | K34: 0 | M34: 0 | N34: =J34*L34 -> 0 | O34: 0 | P34: =+J34-N34 -> 0 | Q34: 0 | R34: =+J34*E$7 -> 0
B36: Diesel Fuel
C37: Pickup/General Use Equipment | D37: 1 | F37: Acre | G37: 0 | I37: 0 | J37: =E37*H37 -> 0 | K37: 0 | M37: 0 | N37: =J37*L37 -> 0 | O37: 0 | P37: =+J37-N37 -> 0 | Q37: 0 | R37: =+J37*E$7 -> 0
C38: Tractors/Self-Propelled | D38: 3.18 | F38: Gallon | G38: 3.6 | I38: 11.448 | J38: =E38*H38 -> 0 | K38: 0 | M38: 0 | N38: =J38*L38 -> 0 | O38: 11.448 | P38: =+J38-N38 -> 0 | Q38: 286.2 | R38: =+J38*E$7 -> 0
B40: Gasoline
C41: Pickup/General Use Equipment | D41: 1 | F41: Acre | G41: 6.3 | I41: 6.3 | J41: =E41*H41 -> 0 | K41: 0 | M41: 0 | N41: =J41*L41 -> 0 | O41: 6.3 | P41: =+J41-N41 -> 0 | Q41: 157.5 | R41: =+J41*E$7 -> 0
C42: Tractors/Self-Propelled | D42: 0 | F42: Gallon | G42: 3.15 | I42: 0 | J42: =E42*H42 -> 0 | K42: 0 | M42: 0 | N42: =J42*L42 -> 0 | O42: 0 | P42: =+J42-N42 -> 0 | Q42: 0 | R42: =+J42*E$7 -> 0
B44: Repairs & Maintenance
C45: Pickup/General Use Equipment | D45: 1 | F45: Acre | G45: 2.448 | I45: 2.448 | J45: =E45*H45 -> 0 | K45: 0 | M45: 0 | N45: =J45*L45 -> 0 | O45: 2.448 | P45: =+J45-N45 -> 0 | Q45: 61.2 | R45: =+J45*E$7 -> 0
C46: Irrigation Equipment | D46: 1 | F46: Acre | G46: 0 | I46: 0 | J46: 0 | K46: 0 | M46: 0 | N46: 0 | O46: 0 | P46: 0 | Q46: 0 | R46: 0
C47: Tractors/Self-Propelled | D47: 1 | F47: Acre | G47: 4.54257088 | I47: 4.54257088 | J47: 0 | K47: 0 | M47: 0 | N47: 0 | O47: 4.54257088 | P47: 0 | Q47: 113.564272 | R47: 0
C48: Implements | D48: 1 | F48: Acre | G48: 9.174428545 | I48: 9.174428545 | J48: 0 | K48: 0 | M48: 0 | N48: 0 | O48: 9.174428545 | P48: 0 | Q48: 229.3607136 | R48: 0
I49: 0 | J49: 0 | K49: 0 | M49: 0 | N49: 0 | O49: 0 | P49: 0 | Q49: 0 | R49: =+J49*E$7 -> 0
I50: 0 | J50: 0 | K50: 0 | M50: 0 | N50: 0 | O50: 0 | P50: 0 | Q50: 0 | R50: 0
B51: Interest on Credit Line | G51: 0.08 | I51: 31.79788564 | J51: =+SUM(J17:J50)/2*H51 -> 0 | M51: 0 | N51: =+SUM(N17:N50)/2*L51 -> 0 | O51: 31.79788564 | P51: =+SUM(P17:P50)/2*L51 -> 0 | Q51: 794.9471409 | R51: =+J51*E$7 -> 0
A52: Total Variable Costs | I52: 475.0654851 | J52: =SUM(J18:J51) -> 0 | M52: 0 | N52: =SUM(N18:N51) -> 0 | O52: 475.0654851 | P52: =SUM(P18:P51) -> 0 | Q52: 11876.63713 | R52: =SUM(R18:R51) -> 0
A53: Planned Returns Above Variable Costs: | I53: -475.0654851 | J53: =+J13-J52 -> 0 | M53: 0 | N53: =+N13-N52 -> 0 | O53: -475.0654851 | P53: =+P13-P52 -> 0 | Q53: -11876.63713 | R53: =+R13-R52 -> 0
B54: Breakeven Price to Cover Variable Costs | G54: n/a | H54: =IF(E10=0,"n/a",(YVarExp-(YTotExp+YTotRet-J10))/E10) -> n/a
Q55: Enterprise | R55: Enterprise
A56: FIXED COSTS | D56: Quantity | E56: Quantity | F56: Units | G56: $/Unit | H56: $/Unit | J56: Total | K56: Share | L56: Share | M56: Landlord | N56: Landlord | O56: Tenant | P56: Tenant | Q56: Total | R56: Total
B57: Machinery Depreciation
C58: Pickup/General Use Equipment | D58: 1 | F58: Acre | G58: 2.5704 | I58: 2.5704 | J58: =E58*H58 -> 0 | K58: 0 | M58: 0 | N58: =J58*L58 -> 0 | O58: 2.5704 | P58: =+J58-N58 -> 0 | Q58: 64.26 | R58: =+J58*E$7 -> 0
C59: Tractors/Self-Propelled | D59: 1 | F59: Acre | G59: 3.755191928 | I59: 3.755191928 | J59: 0 | K59: 0 | M59: 0 | N59: =J59*L59 -> 0 | O59: 3.755191928 | P59: 0 | Q59: 93.8797982 | R59: 0
C60: Implements | D60: 1 | F60: Acre | G60: 10.84427265 | I60: 10.84427265 | J60: 0 | K60: 0 | M60: 0 | N60: =J60*L60 -> 0 | O60: 10.84427265 | P60: 0 | Q60: 271.1068163 | R60: 0
B61: Equipment Investment
C62: Pickup/General Use Equipment | D62: 17.748 | F62: Dollars | G62: 0.08 | I62: 1.41984 | J62: =E62*H62 -> 0 | K62: 0 | M62: 0 | N62: =J62*L62 -> 0 | O62: 1.41984 | P62: =+J62-N62 -> 0 | Q62: 35.496 | R62: =+J62*E$7 -> 0
C63: Tractors/Self-Propelled | D63: 29.25415647 | F63: Dollars | G63: 0.08 | I63: 2.340332518 | J63: 0 | K63: 0 | M63: 0 | N63: =J63*L63 -> 0 | O63: 2.340332518 | P63: 0 | Q63: 58.50831294 | R63: 0
C64: Implements | D64: 46.38938857 | F64: Dollars | G64: 0.08 | I64: 3.711151086 | J64: 0 | K64: 0 | M64: 0 | N64: =J64*L64 -> 0 | O64: 3.711151086 | P64: 0 | Q64: 92.77877714 | R64: 0
B65: Salaried Labor | D65: 1 | F65: Acre | G65: 0 | I65: 0 | J65: 0 | K65: 0 | M65: 0 | N65: =J65*L65 -> 0 | O65: 0 | P65: =+J65-N65 -> 0 | Q65: 0 | R65: =+J65*E$7 -> 0
B66: Management Fee, Owner/Operator Labor | D66: 1 | F66: Acre | G66: 0 | I66: 0 | J66: 0 | K66: 0 | M66: 0 | N66: 0 | O66: 0 | P66: 0 | Q66: 0 | R66: 0
B67: Allocated Establishment Cost | D67: 1 | F67: Acre | G67: 0 | I67: 0 | J67: 0 | K67: 0 | M67: 0 | N67: 0 | O67: 0 | P67: 0 | Q67: 0 | R67: 0
B68: None | D68: 1 | F68: Acre | G68: 0 | I68: 0 | J68: 0 | K68: 0 | M68: 0 | N68: 0 | O68: 0 | P68: 0 | Q68: 0 | R68: 0
B69: Property Taxes | D69: 1 | F69: Acre | G69: 0 | I69: 0 | J69: =E69*H69 -> 0 | K69: 0 | M69: 0 | N69: 0 | O69: 0 | P69: 0 | Q69: 0 | R69: =+J69*E$7 -> 0
B70: Whole Farm Insurance | D70: 1 | F70: Acre | G70: 0 | I70: 0 | J70: 0 | K70: 0 | M70: 0 | N70: 0 | O70: 0 | P70: 0 | Q70: 0 | R70: 0
D71: 1 | G71: 0 | I71: 0 | J71: 0 | K71: 0 | M71: 0 | N71: 0 | O71: 0 | P71: 0 | Q71: 0 | R71: 0
D72: 1 | G72: 0 | I72: 0 | J72: 0 | K72: 0 | M72: 0 | N72: 0 | O72: 0 | P72: 0 | Q72: 0 | R72: 0
A73: Total Fixed Costs | I73: 24.64118818 | J73: =+SUM(J58:J72) -> 0 | M73: 0 | N73: =+SUM(N58:N72) -> 0 | O73: 24.64118818 | P73: =+SUM(P58:P72) -> 0 | Q73: 616.0297046 | R73: =+SUM(R58:R72) -> 0
A74: Total Specified Costs | I74: 499.7066732 | J74: =+J52+J73 -> 0 | M74: 0 | N74: =+N52+N73 -> 0 | O74: 499.7066732 | P74: =+P52+P73 -> 0 | Q74: 12492.66683 | R74: =+R52+R73 -> 0
A76: Returns Above Specified Costs | I76: -499.7066732 | J76: =+J13-J74 -> 0 | M76: 0 | N76: =+N13-N74 -> 0 | O76: -499.7066732 | P76: =+P13-P74 -> 0 | Q76: -12492.66683 | R76: =+R13-R74 -> 0
A78: Breakeven Price to Cover Total Costs | G78: n/a | H78: =IF(E10=0,"n/a",(YTotExp-(YTotExp+YTotRet-J10))/E10) -> n/a
D80: Example Breakeven Prices
B81: Example | C81: Example | D81: To Cover | G81: To Cover
B82: Yield | C82: Yield | D82: Variable | G82: Total
B83: Percent | D83: Costs | G83: Costs
B84: 0.75 | C84: 0 | D84: 0 | G84: 0
B85: 0.9 | C85: 0 | D85: 0 | G85: 0
B86: 1 | C86: 0 | D86: 0 | G86: 0
B87: 1.1 | C87: 0 | D87: 0 | G87: 0
B88: 1.25 | C88: 0 | D88: 0 | G88: 0
D90: Your Breakeven Prices
B91: Your | C91: Your | E91: To Cover | H91: To Cover
B92: Yield | C92: Yield | E92: Variable | H92: Total
B93: Percent | E93: Costs | H93: Costs
B94: 0.75 | C94: =E10*YPER1 -> 0 | E94: =IF($E$10=0,0,(YVarExp-(YTotExp+YTotRet-J10))/($E$10*YPER1)) -> 0 | H94: =IF($E$10=0,0,(YTotExp-(YTotExp+YTotRet-J10))/($E$10*YPER1)) -> 0
B95: 0.9 | C95: =E10*YPER2 -> 0 | E95: =IF($E$10=0,0,(YVarExp-(YTotExp+YTotRet-J10))/($E$10*YPER2)) -> 0 | H95: =IF($E$10=0,0,(YTotExp-(YTotExp+YTotRet-J10))/($E$10*YPER2)) -> 0
B96: 1 | C96: =+E10 -> 0 | E96: =IF($E$10=0,0,(YVarExp-(YTotExp+YTotRet-J10))/($E$10*YPER3)) -> 0 | H96: =IF($E$10=0,0,(YTotExp-(YTotExp+YTotRet-J10))/($E$10*YPER3)) -> 0
B97: 1.1 | C97: =E10*YPER4 -> 0 | E97: =IF($E$10=0,0,(YVarExp-(YTotExp+YTotRet-J10))/($E$10*YPER4)) -> 0 | H97: =IF($E$10=0,0,(YTotExp-(YTotExp+YTotRet-J10))/($E$10*YPER4)) -> 0
B98: 1.25 | C98: =E10*YPER5 -> 0 | E98: =IF($E$10=0,0,(YVarExp-(YTotExp+YTotRet-J10))/($E$10*YPER5)) -> 0 | H98: =IF($E$10=0,0,(YTotExp-(YTotExp+YTotRet-J10))/($E$10*YPER5)) -> 0
A100: Developed by Vanessa Olson, Extension Forage Specialist; and, Jason Banta, Extension Beef Cattle Specialist, Texas A&M AgriLife Extension Service. For more information, contact: Vanessa Olson or Jason Banta at 903-834-6191.
A102: Information presented is prepared solely as a general guide and not intended to recognize or predict the costs and returns from any one operation. Brand names are mentioned only as examples and imply no endorsement.

Sheet LargeRoundHay
A1: Projections for Planning Purposes Only -- Not to be Used without Updating
A2: 2024 Estimated Costs and Returns per Acre
A3: Coastal Bermudagrass Hay, Large Bales
A4: Enter your name for this budget in the cell above.
A5: Enter Your Values in the cells highlighed in MAROON.
E6: Your Acres | R6: Your
C7: Crop Acres | D7: 25 | L7: Your | Q7: Enterprise | R7: Enterprise
E8: Your | H8: Your | I8: Cash | J8: Your | K8: Landlord | L8: Landlord | N8: Your | P8: Your | Q8: Total | R8: Total
A9: REVENUE | D9: Quantity | E9: Quantity | F9: Units | G9: $/Unit | H9: $/Unit | I9: Total | J9: Total | K9: Share | L9: Share | M9: Landlord | N9: Landlord | O9: Tenant | P9: Tenant | Q9: (25 acres) | R9: ="(" & E7 & " acres)" -> ( acres)
B10: Bermuda Hay, Large Bales | D10: 3 | F10: Ton | G10: 200 | I10: 600 | J10: =E10*H10 -> 0 | K10: 0 | M10: 0 | N10: =J10*L10 -> 0 | O10: 600 | P10: =+J10-N10 -> 0 | Q10: 15000 | R10: =+J10*E$7 -> 0
D11: 0 | G11: 0 | I11: 0 | J11: 0 | K11: 0 | M11: 0 | N11: 0 | O11: 0 | P11: =+J11-N11 -> 0 | Q11: 0 | R11: 0
D12: 0 | G12: 0 | I12: 0 | J12: 0 | K12: 0 | M12: 0 | N12: 0 | O12: 0 | P12: 0 | Q12: 0 | R12: 0
A13: Total Revenue | I13: 600 | J13: =SUM(J10:J12) -> 0 | M13: 0 | N13: =SUM(N10:N12) -> 0 | O13: 600 | P13: =SUM(P10:P12) -> 0 | Q13: 15000 | R13: =SUM(R10:R12) -> 0
Q14: Enterprise | R14: Enterprise
A15: VARIABLE COSTS | D15: Quantity | E15: Quantity | F15: Units | G15: $/Unit | H15: $/Unit | I15: Total | J15: Total | K15: Share | L15: Share | M15: Landlord | N15: Landlord | O15: Tenant | P15: Tenant | Q15: Total | R15: Total
A16: Production Costs
B17: Fertilizer
C18: Nitrogen | D18: 240 | F18: Pound | G18: 0.55 | I18: 132 | J18: =E18*H18 -> 0 | K18: 0 | M18: 0 | N18: =J18*L18 -> 0 | O18: 132 | P18: =+J18-N18 -> 0 | Q18: 3300 | R18: =+J18*E$7 -> 0
C19: Phosphate | D19: 48 | F19: Pound | G19: 0.66 | I19: 31.68 | J19: 0 | K19: 0 | M19: 0 | N19: 0 | O19: 31.68 | P19: 0 | Q19: 792 | R19: 0
C20: Potash | D20: 192 | F20: Pound | G20: 0.3 | I20: 57.6 | J20: 0 | K20: 0 | M20: 0 | N20: 0 | O20: 57.6 | P20: 0 | Q20: 1440 | R20: 0
C21: Lime | D21: 0.333333 | F21: Ton | G21: 65 | I21: 21.666645 | J21: 0 | K21: 0 | M21: 0 | N21: 0 | O21: 21.666645 | P21: 0 | Q21: 541.666125 | R21: 0
B22: Herbicide
C23: Glyphosphate | D23: 32 | F23: Ounce | G23: 0.109375 | I23: 3.5 | J23: 0 | K23: 0 | M23: 0 | N23: 0 | O23: 3.5 | P23: 0 | Q23: 87.5 | R23: 0
C24: Pasture Herbicide | D24: 4 | F24: Acre | G24: 10 | I24: 40 | J24: 0 | K24: 0 | M24: 0 | N24: 0 | O24: 40 | P24: 0 | Q24: 1000 | R24: 0
B25: Custom
C26: Custom Round Baling | D26: 3 | F26: Ton | G26: 50 | I26: 150 | J26: 0 | K26: 0 | M26: 0 | N26: 0 | O26: 150 | P26: 0 | Q26: 3750 | R26: 0
C27: Custom Round Bale Hauling | D27: 3 | F27: Ton | G27: 2 | I27: 6 | J27: 0 | K27: 0 | M27: 0 | N27: 0 | O27: 6 | P27: 0 | Q27: 150 | R27: 0
D28: 0 | G28: 0 | I28: 0 | J28: 0 | K28: 0 | M28: 0 | N28: 0 | O28: 0 | P28: 0 | Q28: 0 | R28: 0
D29: 0 | G29: 0 | I29: 0 | J29: 0 | K29: 0 | M29: 0 | N29: 0 | O29: 0 | P29: 0 | Q29: 0 | R29: 0
D30: 0 | G30: 0 | I30: 0 | J30: =E30*H30 -> 0 | K30: 0 | M30: 0 | N30: =J30*L30 -> 0 | O30: 0 | P30: =+J30-N30 -> 0 | Q30: 0 | R30: =+J30*E$7 -> 0
B31: Machinery Labor
C32: Tractors/Self-Propelled | D32: 0.33 | F32: Hour | G32: 17.21 | I32: 5.6793 | J32: =E32*H32 -> 0 | K32: 0 | M32: 0 | N32: =J32*L32 -> 0 | O32: 5.6793 | P32: =+J32-N32 -> 0 | Q32: 141.9825 | R32: =+J32*E$7 -> 0
C33: Other Labor | D33: 0 | F33: Hour | G33: 17.21 | I33: 0 | J33: =E33*H33 -> 0 | K33: 0 | M33: 0 | N33: =J33*L33 -> 0 | O33: 0 | P33: =+J33-N33 -> 0 | Q33: 0 | R33: =+J33*E$7 -> 0
B35: Diesel Fuel
C36: Pickup/General Use Equipment | D36: 1 | F36: Acre | G36: 0 | I36: 0 | J36: =E36*H36 -> 0 | K36: 0 | M36: 0 | N36: =J36*L36 -> 0 | O36: 0 | P36: =+J36-N36 -> 0 | Q36: 0 | R36: =+J36*E$7 -> 0
C37: Tractors/Self-Propelled | D37: 1.25 | F37: Gallon | G37: 3.6 | I37: 4.5 | J37: =E37*H37 -> 0 | K37: 0 | M37: 0 | N37: =J37*L37 -> 0 | O37: 4.5 | P37: =+J37-N37 -> 0 | Q37: 112.5 | R37: =+J37*E$7 -> 0
B39: Gasoline
C40: Pickup/General Use Equipment | D40: 1 | F40: Acre | G40: 3.15 | I40: 3.15 | J40: =E40*H40 -> 0 | K40: 0 | M40: 0 | N40: =J40*L40 -> 0 | O40: 3.15 | P40: =+J40-N40 -> 0 | Q40: 78.75 | R40: =+J40*E$7 -> 0
C41: Tractors/Self-Propelled | D41: 0 | F41: Gallon | G41: 3.15 | I41: 0 | J41: =E41*H41 -> 0 | K41: 0 | M41: 0 | N41: =J41*L41 -> 0 | O41: 0 | P41: =+J41-N41 -> 0 | Q41: 0 | R41: =+J41*E$7 -> 0
B43: Repairs & Maintenance
C44: Pickup/General Use Equipment | D44: 1 | F44: Acre | G44: 1.224 | I44: 1.224 | J44: =E44*H44 -> 0 | K44: 0 | M44: 0 | N44: =J44*L44 -> 0 | O44: 1.224 | P44: =+J44-N44 -> 0 | Q44: 30.6 | R44: =+J44*E$7 -> 0
C45: Irrigation Equipment | D45: 1 | F45: Acre | G45: 0 | I45: 0 | J45: 0 | K45: 0 | M45: 0 | N45: 0 | O45: 0 | P45: 0 | Q45: 0 | R45: 0
C46: Tractors/Self-Propelled | D46: 1 | F46: Acre | G46: 1.501384556 | I46: 1.501384556 | J46: 0 | K46: 0 | M46: 0 | N46: 0 | O46: 1.501384556 | P46: 0 | Q46: 37.53461391 | R46: 0
C47: Implements | D47: 1 | F47: Acre | G47: 0.6305576552 | I47: 0.6305576552 | J47: 0 | K47: 0 | M47: 0 | N47: 0 | O47: 0.6305576552 | P47: 0 | Q47: 15.76394138 | R47: 0
I48: 0 | J48: 0 | K48: 0 | M48: 0 | N48: 0 | O48: 0 | P48: 0 | Q48: 0 | R48: 0
I49: 0 | J49: 0 | K49: 0 | M49: 0 | N49: 0 | O49: 0 | P49: 0 | Q49: 0 | R49: 0
B50: Interest on Credit Line | G50: 0.08 | I50: 11.19421731 | J50: =+SUM(J17:J49)/2*H50 -> 0 | M50: 0 | N50: =+SUM(N17:N49)/2*L50 -> 0 | O50: 11.19421731 | P50: =+SUM(P17:P49)/2*L50 -> 0 | Q50: 279.8554328 | R50: =+J50*E$7 -> 0
A51: Total Variable Costs | I51: 470.3261045 | J51: =SUM(J18:J50) -> 0 | M51: 0 | N51: =SUM(N18:N50) -> 0 | O51: 470.3261045 | P51: =SUM(P18:P50) -> 0 | Q51: 11758.15261 | R51: =SUM(R18:R50) -> 0
A52: Planned Returns Above Variable Costs: | I52: 129.6738955 | J52: =+J13-J51 -> 0 | M52: 0 | N52: =+N13-N51 -> 0 | O52: 129.6738955 | P52: =+P13-P51 -> 0 | Q52: 3241.847387 | R52: =+R13-R51 -> 0
B53: Breakeven Price to Cover Variable Costs | G53: 156.7753682 | H53: =IF(E10=0,"n/a",(YVarExp-(YTotExp+YTotRet-J10))/E10) -> n/a | I53: Ton
Q54: Enterprise | R54: Enterprise
A55: FIXED COSTS | D55: Quantity | E55: Quantity | F55: Units | G55: $/Unit | H55: $/Unit | I55: Total | J55: Total | K55: Share | L55: Share | M55: Landlord | N55: Landlord | O55: Tenant | P55: Tenant | Q55: Total | R55: Total
B56: Machinery Depreciation
C57: Pickup/General Use Equipment | D57: 1 | F57: Acre | G57: 1.2852 | I57: 1.2852 | J57: =E57*H57 -> 0 | K57: 0 | M57: 0 | N57: =J57*L57 -> 0 | O57: 1.2852 | P57: =+J57-N57 -> 0 | Q57: 32.13 | R57: =+J57*E$7 -> 0
C58: Tractors/Self-Propelled | D58: 1 | F58: Acre | G58: 1.241144567 | I58: 1.241144567 | J58: 0 | K58: 0 | M58: 0 | N58: =J58*L58 -> 0 | O58: 1.241144567 | P58: 0 | Q58: 31.02861417 | R58: 0
C59: Implements | D59: 1 | F59: Acre | G59: 0.5675018896 | I59: 0.5675018896 | J59: 0 | K59: 0 | M59: 0 | N59: =J59*L59 -> 0 | O59: 0.5675018896 | P59: 0 | Q59: 14.18754724 | R59: 0
B60: Equipment Investment
C61: Pickup/General Use Equipment | D61: 8.874 | F61: Dollars | G61: 0.08 | I61: 0.70992 | J61: =E61*H61 -> 0 | K61: 0 | M61: 0 | N61: =J61*L61 -> 0 | O61: 0.70992 | P61: =+J61-N61 -> 0 | Q61: 17.748 | R61: =+J61*E$7 -> 0
C62: Tractors/Self-Propelled | D62: 9.668916543 | F62: Dollars | G62: 0.08 | I62: 0.7735133235 | J62: 0 | K62: 0 | M62: 0 | N62: =J62*L62 -> 0 | O62: 0.7735133235 | P62: 0 | Q62: 19.33783309 | R62: 0
C63: Implements | D63: 2.427646972 | F63: Dollars | G63: 0.08 | I63: 0.1942117578 | J63: 0 | K63: 0 | M63: 0 | N63: =J63*L63 -> 0 | O63: 0.1942117578 | P63: 0 | Q63: 4.855293945 | R63: 0
B64: Salaried Labor | D64: 1 | F64: Acre | G64: 0 | I64: 0 | J64: 0 | K64: 0 | M64: 0 | N64: =J64*L64 -> 0 | O64: 0 | P64: =+J64-N64 -> 0 | Q64: 0 | R64: =+J64*E$7 -> 0
B65: Management Fee, Owner/Operator Labor | D65: 1 | F65: Acre | G65: 0 | I65: 0 | J65: 0 | K65: 0 | M65: 0 | N65: 0 | O65: 0 | P65: 0 | Q65: 0 | R65: 0
B66: Allocated Establishment Cost | D66: 1 | F66: Acre | G66: 0 | I66: 0 | J66: 0 | K66: 0 | M66: 0 | N66: 0 | O66: 0 | P66: 0 | Q66: 0 | R66: 0
B67: Bermuda Pasture Rent | D67: 1 | F67: Acre | G67: 25 | I67: 25 | J67: 0 | K67: 0 | M67: 0 | N67: 0 | O67: 25 | P67: 0 | Q67: 625 | R67: 0
B68: Property Taxes | D68: 1 | F68: Acre | G68: 0 | I68: 0 | J68: 0 | K68: 0 | M68: 0 | N68: 0 | O68: 0 | P68: 0 | Q68: 0 | R68: 0
B69: Whole Farm Insurance | D69: 1 | F69: Acre | G69: 0 | I69: 0 | J69: 0 | K69: 0 | M69: 0 | N69: 0 | O69: 0 | P69: 0 | Q69: 0 | R69: 0
D70: 1 | G70: 0 | I70: 0 | J70: 0 | K70: 0 | M70: 0 | N70: 0 | O70: 0 | P70: 0 | Q70: 0 | R70: 0
D71: 1 | G71: 0 | I71: 0 | J71: =E71*H71 -> 0 | K71: 0 | M71: 0 | N71: 0 | O71: 0 | P71: 0 | Q71: 0 | R71: 0
A72: Total Fixed Costs | I72: 29.77149154 | J72: =+SUM(J57:J71) -> 0 | M72: 0 | N72: =+SUM(N57:N71) -> 0 | O72: 29.77149154 | P72: =+SUM(P57:P71) -> 0 | Q72: 744.2872884 | R72: =+SUM(R57:R71) -> 0
A73: Total Specified Costs | I73: 500.0975961 | J73: =+J51+J72 -> 0 | M73: 0 | N73: =+N51+N72 -> 0 | O73: 500.0975961 | P73: =+P51+P72 -> 0 | Q73: 12502.4399 | R73: =+R51+R72 -> 0
A75: Returns Above Specified Costs | I75: 99.90240394 | J75: =+J13-J73 -> 0 | M75: 0 | N75: =+N13-N73 -> 0 | O75: 99.90240394 | P75: =+P13-P73 -> 0 | Q75: 2497.560099 | R75: =+R13-R73 -> 0
A77: Breakeven Price to Cover Total Costs | G77: 166.6991987 | H77: =IF(E10=0,"n/a",(YTotExp-(YTotExp+YTotRet-J10))/E10) -> n/a | I77: Ton
D79: Example Breakeven Prices
B80: Example | C80: Example | D80: To Cover | G80: To Cover
B81: Yield | C81: Yield | D81: Variable | G81: Total
B82: Percent | C82: Ton | D82: Costs | G82: Costs
B83: 0.75 | C83: 2.25 | D83: 209.0338242 | G83: 222.2655982
B84: 0.9 | C84: 2.7 | D84: 174.1948535 | G84: 185.2213319
B85: 1 | C85: 3 | D85: 156.7753682 | G85: 166.6991987
B86: 1.1 | C86: 3.3 | D86: 142.523062 | G86: 151.5447261
B87: 1.25 | C87: 3.75 | D87: 125.4202945 | G87: 133.3593589
D89: Your Breakeven Prices
B90: Your | C90: Your | E90: To Cover | H90: To Cover
B91: Yield | C91: Yield | E91: Variable | H91: Total
B92: Percent | C92: Ton | E92: Costs | H92: Costs
B93: 0.75 | C93: =E10*YPER1 -> 0 | E93: =IF($E$10=0,0,(YVarExp-(YTotExp+YTotRet-J10))/($E$10*YPER1)) -> 0 | H93: =IF($E$10=0,0,(YTotExp-(YTotExp+YTotRet-J10))/($E$10*YPER1)) -> 0
B94: 0.9 | C94: =E10*YPER2 -> 0 | E94: =IF($E$10=0,0,(YVarExp-(YTotExp+YTotRet-J10))/($E$10*YPER2)) -> 0 | H94: =IF($E$10=0,0,(YTotExp-(YTotExp+YTotRet-J10))/($E$10*YPER2)) -> 0
B95: 1 | C95: =+E10 -> 0 | E95: =IF($E$10=0,0,(YVarExp-(YTotExp+YTotRet-J10))/($E$10*YPER3)) -> 0 | H95: =IF($E$10=0,0,(YTotExp-(YTotExp+YTotRet-J10))/($E$10*YPER3)) -> 0
B96: 1.1 | C96: =E10*YPER4 -> 0 | E96: =IF($E$10=0,0,(YVarExp-(YTotExp+YTotRet-J10))/($E$10*YPER4)) -> 0 | H96: =IF($E$10=0,0,(YTotExp-(YTotExp+YTotRet-J10))/($E$10*YPER4)) -> 0
B97: 1.25 | C97: =E10*YPER5 -> 0 | E97: =IF($E$10=0,0,(YVarExp-(YTotExp+YTotRet-J10))/($E$10*YPER5)) -> 0 | H97: =IF($E$10=0,0,(YTotExp-(YTotExp+YTotRet-J10))/($E$10*YPER5)) -> 0
A99: Developed by Vanessa Olson, Extension Forage Specialist; and, Jason Banta, Extension Beef Cattle Specialist, Texas A&M AgriLife Extension Service. For more information, contact: Vanessa Olson or Jason Banta at 903-834-6191.
A101: Information presented is prepared solely as a general guide and not intended to recognize or predict the costs and returns from any one operation. Brand names are mentioned only as examples and imply no endorsement.

Sheet SmallSquareHay
A1: Projections for Planning Purposes Only -- Not to be Used without Updating
A2: 2024 Estimated Costs and Returns per Acre
A3: Coastal Bermudagrass Hay, Small Square Bales (60 lbs.)
A4: Enter your name for this budget in the cell above.
A5: Enter Your Values in the cells highlighed in MAROON.
E6: Your Acres | R6: Your
C7: Crop Acres | D7: 25 | L7: Your | Q7: Enterprise | R7: Enterprise
E8: Your | H8: Your | I8: Cash | J8: Your | K8: Landlord | L8: Landlord | N8: Your | P8: Your | Q8: Total | R8: Total
A9: REVENUE | D9: Quantity | E9: Quantity | F9: Units | G9: $/Unit | H9: $/Unit | I9: Total | J9: Total | K9: Share | L9: Share | M9: Landlord | N9: Landlord | O9: Tenant | P9: Tenant | Q9: (25 acres) | R9: ="(" & E7 & " acres)" -> ( acres)
B10: Bermuda Hay, 60 lbs. Square Bales(in field) | D10: 100 | F10: Bale | G10: 8.5 | I10: 850 | J10: =E10*H10 -> 0 | K10: 0 | M10: 0 | N10: =J10*L10 -> 0 | O10: 850 | P10: =+J10-N10 -> 0 | Q10: 21250 | R10: =+J10*E$7 -> 0
D11: 0 | G11: 0 | I11: 0 | J11: 0 | K11: 0 | M11: 0 | N11: 0 | O11: 0 | P11: =+J11-N11 -> 0 | Q11: 0 | R11: 0
D12: 0 | G12: 0 | I12: 0 | J12: 0 | K12: 0 | M12: 0 | N12: 0 | O12: 0 | P12: 0 | Q12: 0 | R12: 0
A13: Total Revenue | I13: 850 | J13: =SUM(J10:J12) -> 0 | M13: 0 | N13: =SUM(N10:N12) -> 0 | O13: 850 | P13: =SUM(P10:P12) -> 0 | Q13: 21250 | R13: =SUM(R10:R12) -> 0
Q14: Enterprise | R14: Enterprise
A15: VARIABLE COSTS | D15: Quantity | E15: Quantity | F15: Units | G15: $/Unit | H15: $/Unit | I15: Total | J15: Total | K15: Share | L15: Share | M15: Landlord | N15: Landlord | O15: Tenant | P15: Tenant | Q15: Total | R15: Total
A16: Production Costs
B17: Fertilizer
C18: Nitrogen | D18: 240 | F18: Pound | G18: 0.55 | I18: 132 | J18: =E18*H18 -> 0 | K18: 0 | M18: 0 | N18: =J18*L18 -> 0 | O18: 132 | P18: =+J18-N18 -> 0 | Q18: 3300 | R18: =+J18*E$7 -> 0
C19: Phosphate | D19: 48 | F19: Pound | G19: 0.66 | I19: 31.68 | J19: 0 | K19: 0 | M19: 0 | N19: 0 | O19: 31.68 | P19: 0 | Q19: 792 | R19: 0
C20: Potash | D20: 192 | F20: Pound | G20: 0.3 | I20: 57.6 | J20: 0 | K20: 0 | M20: 0 | N20: 0 | O20: 57.6 | P20: 0 | Q20: 1440 | R20: 0
C21: Lime | D21: 0.333333 | F21: Ton | G21: 65 | I21: 21.666645 | J21: 0 | K21: 0 | M21: 0 | N21: 0 | O21: 21.666645 | P21: 0 | Q21: 541.666125 | R21: 0
B22: Herbicide
C23: Glyphosphate | D23: 32 | F23: Ounce | G23: 0.109375 | I23: 3.5 | J23: 0 | K23: 0 | M23: 0 | N23: 0 | O23: 3.5 | P23: 0 | Q23: 87.5 | R23: 0
C24: Pasture Herbicide | D24: 4 | F24: Acre | G24: 10 | I24: 40 | J24: 0 | K24: 0 | M24: 0 | N24: 0 | O24: 40 | P24: 0 | Q24: 1000 | R24: 0
D25: 0 | G25: 0 | I25: 0 | J25: 0 | K25: 0 | M25: 0 | N25: 0 | O25: 0 | P25: 0 | Q25: 0 | R25: 0
D26: 0 | G26: 0 | I26: 0 | J26: 0 | K26: 0 | M26: 0 | N26: 0 | O26: 0 | P26: 0 | Q26: 0 | R26: 0
D27: 0 | G27: 0 | I27: 0 | J27: =E27*H27 -> 0 | K27: 0 | M27: 0 | N27: =J27*L27 -> 0 | O27: 0 | P27: =+J27-N27 -> 0 | Q27: 0 | R27: =+J27*E$7 -> 0
B28: Machinery Labor
C29: Tractors/Self-Propelled | D29: 1.68 | F29: Hour | G29: 17.21 | I29: 28.9128 | J29: =E29*H29 -> 0 | K29: 0 | M29: 0 | N29: =J29*L29 -> 0 | O29: 28.9128 | P29: =+J29-N29 -> 0 | Q29: 722.82 | R29: =+J29*E$7 -> 0
C30: Other Labor | D30: 0 | F30: Hour | G30: 17.21 | I30: 0 | J30: =E30*H30 -> 0 | K30: 0 | M30: 0 | N30: =J30*L30 -> 0 | O30: 0 | P30: =+J30-N30 -> 0 | Q30: 0 | R30: =+J30*E$7 -> 0
B32: Diesel Fuel
C33: Pickup/General Use Equipment | D33: 1 | F33: Acre | G33: 0 | I33: 0 | J33: =E33*H33 -> 0 | K33: 0 | M33: 0 | N33: =J33*L33 -> 0 | O33: 0 | P33: =+J33-N33 -> 0 | Q33: 0 | R33: =+J33*E$7 -> 0
C34: Tractors/Self-Propelled | D34: 6.41 | F34: Gallon | G34: 3.6 | I34: 23.076 | J34: =E34*H34 -> 0 | K34: 0 | M34: 0 | N34: =J34*L34 -> 0 | O34: 23.076 | P34: =+J34-N34 -> 0 | Q34: 576.9 | R34: =+J34*E$7 -> 0
B36: Gasoline
C37: Pickup/General Use Equipment | D37: 1 | F37: Acre | G37: 15.75 | I37: 15.75 | J37: =E37*H37 -> 0 | K37: 0 | M37: 0 | N37: =J37*L37 -> 0 | O37: 15.75 | P37: =+J37-N37 -> 0 | Q37: 393.75 | R37: =+J37*E$7 -> 0
C38: Tractors/Self-Propelled | D38: 0 | F38: Gallon | G38: 3.15 | I38: 0 | J38: =E38*H38 -> 0 | K38: 0 | M38: 0 | N38: =J38*L38 -> 0 | O38: 0 | P38: =+J38-N38 -> 0 | Q38: 0 | R38: =+J38*E$7 -> 0
B40: Repairs & Maintenance
C41: Pickup/General Use Equipment | D41: 1 | F41: Acre | G41: 6.12 | I41: 6.12 | J41: =E41*H41 -> 0 | K41: 0 | M41: 0 | N41: =J41*L41 -> 0 | O41: 6.12 | P41: =+J41-N41 -> 0 | Q41: 153 | R41: =+J41*E$7 -> 0
C42: Irrigation Equipment | D42: 1 | F42: Acre | G42: 0 | I42: 0 | J42: 0 | K42: 0 | M42: 0 | N42: 0 | O42: 0 | P42: 0 | Q42: 0 | R42: 0
C43: Tractors/Self-Propelled | D43: 1 | F43: Acre | G43: 7.685245164 | I43: 7.685245164 | J43: 0 | K43: 0 | M43: 0 | N43: 0 | O43: 7.685245164 | P43: 0 | Q43: 192.1311291 | R43: 0
C44: Implements | D44: 1 | F44: Acre | G44: 5.02917529 | I44: 5.02917529 | J44: 0 | K44: 0 | M44: 0 | N44: 0 | O44: 5.02917529 | P44: 0 | Q44: 125.7293823 | R44: 0
I45: 0 | J45: 0 | K45: 0 | M45: 0 | N45: 0 | O45: 0 | P45: 0 | Q45: 0 | R45: 0
I46: 0 | J46: 0 | K46: 0 | M46: 0 | N46: 0 | O46: 0 | P46: 0 | Q46: 0 | R46: 0
B47: Interest on Credit Line | G47: 0.08 | I47: 10.04318602 | J47: =+SUM(J17:J46)/2*H47 -> 0 | M47: 0 | N47: =+SUM(N17:N46)/2*L47 -> 0 | O47: 10.04318602 | P47: =+SUM(P17:P46)/2*L47 -> 0 | Q47: 251.0796506 | R47: =+J47*E$7 -> 0
A48: Total Variable Costs | I48: 383.0630515 | J48: =SUM(J18:J47) -> 0 | M48: 0 | N48: =SUM(N18:N47) -> 0 | O48: 383.0630515 | P48: =SUM(P18:P47) -> 0 | Q48: 9576.576287 | R48: =SUM(R18:R47) -> 0
A49: Planned Returns Above Variable Costs: | I49: 466.9369485 | J49: =+J13-J48 -> 0 | M49: 0 | N49: =+N13-N48 -> 0 | O49: 466.9369485 | P49: =+P13-P48 -> 0 | Q49: 11673.42371 | R49: =+R13-R48 -> 0
B50: Breakeven Price to Cover Variable Costs | G50: 3.830630515 | H50: =IF(E10=0,"n/a",(YVarExp-(YTotExp+YTotRet-J10))/E10) -> n/a | I50: Bale
Q51: Enterprise | R51: Enterprise
A52: FIXED COSTS | D52: Quantity | E52: Quantity | F52: Units | G52: $/Unit | H52: $/Unit | I52: Total | J52: Total | K52: Share | L52: Share | M52: Landlord | N52: Landlord | O52: Tenant | P52: Tenant | Q52: Total | R52: Total
B53: Machinery Depreciation
C54: Pickup/General Use Equipment | D54: 1 | F54: Acre | G54: 6.426 | I54: 6.426 | J54: =E54*H54 -> 0 | K54: 0 | M54: 0 | N54: =J54*L54 -> 0 | O54: 6.426 | P54: =+J54-N54 -> 0 | Q54: 160.65 | R54: =+J54*E$7 -> 0
C55: Tractors/Self-Propelled | D55: 1 | F55: Acre | G55: 6.353136002 | I55: 6.353136002 | J55: 0 | K55: 0 | M55: 0 | N55: =J55*L55 -> 0 | O55: 6.353136002 | P55: 0 | Q55: 158.8284 | R55: 0
C56: Implements | D56: 1 | F56: Acre | G56: 6.200795073 | I56: 6.200795073 | J56: 0 | K56: 0 | M56: 0 | N56: =J56*L56 -> 0 | O56: 6.200795073 | P56: 0 | Q56: 155.0198768 | R56: 0
B57: Equipment Investment
C58: Pickup/General Use Equipment | D58: 44.37 | F58: Dollars | G58: 0.08 | I58: 3.5496 | J58: =E58*H58 -> 0 | K58: 0 | M58: 0 | N58: =J58*L58 -> 0 | O58: 3.5496 | P58: =+J58-N58 -> 0 | Q58: 88.74 | R58: =+J58*E$7 -> 0
C59: Tractors/Self-Propelled | D59: 49.49297885 | F59: Dollars | G59: 0.08 | I59: 3.959438308 | J59: 0 | K59: 0 | M59: 0 | N59: =J59*L59 -> 0 | O59: 3.959438308 | P59: 0 | Q59: 98.98595771 | R59: 0
C60: Implements | D60: 49.67657551 | F60: Dollars | G60: 0.08 | I60: 3.974126041 | J60: 0 | K60: 0 | M60: 0 | N60: =J60*L60 -> 0 | O60: 3.974126041 | P60: 0 | Q60: 99.35315102 | R60: 0
B61: Salaried Labor | D61: 1 | F61: Acre | G61: 0 | I61: 0 | J61: 0 | K61: 0 | M61: 0 | N61: =J61*L61 -> 0 | O61: 0 | P61: =+J61-N61 -> 0 | Q61: 0 | R61: =+J61*E$7 -> 0
B62: Management Fee, Owner/Operator Labor | D62: 1 | F62: Acre | G62: 0 | I62: 0 | J62: 0 | K62: 0 | M62: 0 | N62: 0 | O62: 0 | P62: 0 | Q62: 0 | R62: 0
B63: Allocated Establishment Cost | D63: 1 | F63: Acre | G63: 0 | I63: 0 | J63: 0 | K63: 0 | M63: 0 | N63: 0 | O63: 0 | P63: 0 | Q63: 0 | R63: 0
B64: Bermuda Pasture Rent | D64: 1 | F64: Acre | G64: 25 | I64: 25 | J64: 0 | K64: 0 | M64: 0 | N64: 0 | O64: 25 | P64: 0 | Q64: 625 | R64: 0
B65: Property Taxes | D65: 1 | F65: Acre | G65: 0 | I65: 0 | J65: 0 | K65: 0 | M65: 0 | N65: 0 | O65: 0 | P65: 0 | Q65: 0 | R65: 0
B66: Whole Farm Insurance | D66: 1 | F66: Acre | G66: 0 | I66: 0 | J66: 0 | K66: 0 | M66: 0 | N66: 0 | O66: 0 | P66: 0 | Q66: 0 | R66: 0
D67: 1 | G67: 0 | I67: 0 | J67: 0 | K67: 0 | M67: 0 | N67: 0 | O67: 0 | P67: 0 | Q67: 0 | R67: 0
D68: 1 | G68: 0 | I68: 0 | J68: =E68*H68 -> 0 | K68: 0 | M68: 0 | N68: 0 | O68: 0 | P68: 0 | Q68: 0 | R68: 0
A69: Total Fixed Costs | I69: 55.46309542 | J69: =+SUM(J54:J68) -> 0 | M69: 0 | N69: =+SUM(N54:N68) -> 0 | O69: 55.46309542 | P69: =+SUM(P54:P68) -> 0 | Q69: 1386.577386 | R69: =+SUM(R54:R68) -> 0
A70: Total Specified Costs | I70: 438.5261469 | J70: =+J48+J69 -> 0 | M70: 0 | N70: =+N48+N69 -> 0 | O70: 438.5261469 | P70: =+P48+P69 -> 0 | Q70: 10963.15367 | R70: =+R48+R69 -> 0
A72: Returns Above Specified Costs | I72: 411.4738531 | J72: =+J13-J70 -> 0 | M72: 0 | N72: =+N13-N70 -> 0 | O72: 411.4738531 | P72: =+P13-P70 -> 0 | Q72: 10286.84633 | R72: =+R13-R70 -> 0
A74: Breakeven Price to Cover Total Costs | G74: 4.385261469 | H74: =IF(E10=0,"n/a",(YTotExp-(YTotExp+YTotRet-J10))/E10) -> n/a | I74: Bale
D76: Example Breakeven Prices
B77: Example | C77: Example | D77: To Cover | G77: To Cover
B78: Yield | C78: Yield | D78: Variable | G78: Total
B79: Percent | C79: Bale | D79: Costs | G79: Costs
B80: 0.75 | C80: 75 | D80: 5.107507353 | G80: 5.847015292
B81: 0.9 | C81: 90 | D81: 4.256256128 | G81: 4.872512743
B82: 1 | C82: 100 | D82: 3.830630515 | G82: 4.385261469
B83: 1.1 | C83: 110 | D83: 3.482391377 | G83: 3.986601335
B84: 1.25 | C84: 125 | D84: 3.064504412 | G84: 3.508209175
D86: Your Breakeven Prices
B87: Your | C87: Your | E87: To Cover | H87: To Cover
B88: Yield | C88: Yield | E88: Variable | H88: Total
B89: Percent | C89: Bale | E89: Costs | H89: Costs
B90: 0.75 | C90: =E10*YPER1 -> 0 | E90: =IF($E$10=0,0,(YVarExp-(YTotExp+YTotRet-J10))/($E$10*YPER1)) -> 0 | H90: =IF($E$10=0,0,(YTotExp-(YTotExp+YTotRet-J10))/($E$10*YPER1)) -> 0
B91: 0.9 | C91: =E10*YPER2 -> 0 | E91: =IF($E$10=0,0,(YVarExp-(YTotExp+YTotRet-J10))/($E$10*YPER2)) -> 0 | H91: =IF($E$10=0,0,(YTotExp-(YTotExp+YTotRet-J10))/($E$10*YPER2)) -> 0
B92: 1 | C92: =+E10 -> 0 | E92: =IF($E$10=0,0,(YVarExp-(YTotExp+YTotRet-J10))/($E$10*YPER3)) -> 0 | H92: =IF($E$10=0,0,(YTotExp-(YTotExp+YTotRet-J10))/($E$10*YPER3)) -> 0
B93: 1.1 | C93: =E10*YPER4 -> 0 | E93: =IF($E$10=0,0,(YVarExp-(YTotExp+YTotRet-J10))/($E$10*YPER4)) -> 0 | H93: =IF($E$10=0,0,(YTotExp-(YTotExp+YTotRet-J10))/($E$10*YPER4)) -> 0
B94: 1.25 | C94: =E10*YPER5 -> 0 | E94: =IF($E$10=0,0,(YVarExp-(YTotExp+YTotRet-J10))/($E$10*YPER5)) -> 0 | H94: =IF($E$10=0,0,(YTotExp-(YTotExp+YTotRet-J10))/($E$10*YPER5)) -> 0
A96: Developed by Vanessa Olson, Extension Forage Specialist; and, Jason Banta, Extension Beef Cattle Specialist, Texas A&M AgriLife Extension Service. For more information, contact: Vanessa Olson or Jason Banta at 903-834-6191.
A98: Information presented is prepared solely as a general guide and not intended to recognize or predict the costs and returns from any one operation. Brand names are mentioned only as examples and imply no endorsement.

Sheet CoastalPasture
A1: Projections for Planning Purposes Only -- Not to be Used without Updating
A2: 2024 Estimated Costs and Returns per Acre
A3: Coastal Bermudagrass Pasture Grazing
A4: Enter your name for this budget in the cell above.
A5: Enter Your Values in the cells highlighed in MAROON.
E6: Your Acres | R6: Your
C7: Crop Acres | D7: 100 | L7: Your | Q7: Enterprise | R7: Enterprise
E8: Your | H8: Your | I8: Cash | J8: Your | K8: Landlord | L8: Landlord | N8: Your | P8: Your | Q8: Total | R8: Total
A9: REVENUE | D9: Quantity | E9: Quantity | F9: Units | G9: $/Unit | H9: $/Unit | I9: Total | J9: Total | K9: Share | L9: Share | M9: Landlord | N9: Landlord | O9: Tenant | P9: Tenant | Q9: (100 acres) | R9: ="(" & E7 & " acres)" -> ( acres)
B10: 0 | D10: 0 | G10: 0 | I10: 0 | J10: =E10*H10 -> 0 | K10: 0 | M10: 0 | N10: =J10*L10 -> 0 | O10: 0 | P10: =+J10-N10 -> 0 | Q10: 0 | R10: =+J10*E$7 -> 0
D11: 0 | G11: 0 | I11: 0 | J11: 0 | K11: 0 | M11: 0 | N11: 0 | O11: 0 | P11: =+J11-N11 -> 0 | Q11: 0 | R11: 0
D12: 0 | G12: 0 | I12: 0 | J12: 0 | K12: 0 | M12: 0 | N12: 0 | O12: 0 | P12: 0 | Q12: 0 | R12: 0
A13: Total Revenue | I13: 0 | J13: =SUM(J10:J12) -> 0 | M13: 0 | N13: =SUM(N10:N12) -> 0 | O13: 0 | P13: =SUM(P10:P12) -> 0 | Q13: 0 | R13: =SUM(R10:R12) -> 0
Q14: Enterprise | R14: Enterprise
A15: VARIABLE COSTS | D15: Quantity | E15: Quantity | F15: Units | G15: $/Unit | H15: $/Unit | I15: Total | J15: Total | K15: Share | L15: Share | M15: Landlord | N15: Landlord | O15: Tenant | P15: Tenant | Q15: Total | R15: Total
A16: Production Costs
B17: Fertilizer
C18: Nitrogen | D18: 180 | F18: Pound | G18: 0.55 | I18: 99 | J18: =E18*H18 -> 0 | K18: 0 | M18: 0 | N18: =J18*L18 -> 0 | O18: 99 | P18: =+J18-N18 -> 0 | Q18: 9900 | R18: =+J18*E$7 -> 0
C19: Phosphate | D19: 15 | F19: Pound | G19: 0.66 | I19: 9.9 | J19: 0 | K19: 0 | M19: 0 | N19: 0 | O19: 9.9 | P19: 0 | Q19: 990 | R19: 0
C20: Potash | D20: 60 | F20: Pound | G20: 0.3 | I20: 18 | J20: 0 | K20: 0 | M20: 0 | N20: 0 | O20: 18 | P20: 0 | Q20: 1800 | R20: 0
C21: Lime | D21: 0.333333 | F21: Ton | G21: 65 | I21: 21.666645 | J21: 0 | K21: 0 | M21: 0 | N21: 0 | O21: 21.666645 | P21: 0 | Q21: 2166.6645 | R21: 0
B22: Herbicide
C23: Pasture Herbicide | D23: 1 | F23: Acre | G23: 10 | I23: 10 | J23: 0 | K23: 0 | M23: 0 | N23: 0 | O23: 10 | P23: 0 | Q23: 1000 | R23: 0
D24: 0 | G24: 0 | I24: 0 | J24: 0 | K24: 0 | M24: 0 | N24: 0 | O24: 0 | P24: 0 | Q24: 0 | R24: 0
D25: 0 | G25: 0 | I25: 0 | J25: 0 | K25: 0 | M25: 0 | N25: 0 | O25: 0 | P25: 0 | Q25: 0 | R25: 0
D26: 0 | G26: 0 | I26: 0 | J26: =E26*H26 -> 0 | K26: 0 | M26: 0 | N26: =J26*L26 -> 0 | O26: 0 | P26: =+J26-N26 -> 0 | Q26: 0 | R26: =+J26*E$7 -> 0
B27: Machinery Labor
C28: Tractors/Self-Propelled | D28: 0.11 | F28: Hour | G28: 17.21 | I28: 1.8931 | J28: =E28*H28 -> 0 | K28: 0 | M28: 0 | N28: =J28*L28 -> 0 | O28: 1.8931 | P28: =+J28-N28 -> 0 | Q28: 189.31 | R28: =+J28*E$7 -> 0
C29: Other Labor | D29: 0 | F29: Hour | G29: 17.21 | I29: 0 | J29: =E29*H29 -> 0 | K29: 0 | M29: 0 | N29: =J29*L29 -> 0 | O29: 0 | P29: =+J29-N29 -> 0 | Q29: 0 | R29: =+J29*E$7 -> 0
B31: Diesel Fuel
C32: Pickup/General Use Equipment | D32: 1 | F32: Acre | G32: 0 | I32: 0 | J32: =E32*H32 -> 0 | K32: 0 | M32: 0 | N32: =J32*L32 -> 0 | O32: 0 | P32: =+J32-N32 -> 0 | Q32: 0 | R32: =+J32*E$7 -> 0
C33: Tractors/Self-Propelled | D33: 0.41 | F33: Gallon | G33: 3.6 | I33: 1.476 | J33: =E33*H33 -> 0 | K33: 0 | M33: 0 | N33: =J33*L33 -> 0 | O33: 1.476 | P33: =+J33-N33 -> 0 | Q33: 147.6 | R33: =+J33*E$7 -> 0
B35: Gasoline
C36: Pickup/General Use Equipment | D36: 1 | F36: Acre | G36: 1.575 | I36: 1.575 | J36: =E36*H36 -> 0 | K36: 0 | M36: 0 | N36: =J36*L36 -> 0 | O36: 1.575 | P36: =+J36-N36 -> 0 | Q36: 157.5 | R36: =+J36*E$7 -> 0
C37: Tractors/Self-Propelled | D37: 0 | F37: Gallon | G37: 3.15 | I37: 0 | J37: =E37*H37 -> 0 | K37: 0 | M37: 0 | N37: =J37*L37 -> 0 | O37: 0 | P37: =+J37-N37 -> 0 | Q37: 0 | R37: =+J37*E$7 -> 0
B39: Repairs & Maintenance
C40: Pickup/General Use Equipment | D40: 1 | F40: Acre | G40: 0.612 | I40: 0.612 | J40: =E40*H40 -> 0 | K40: 0 | M40: 0 | N40: =J40*L40 -> 0 | O40: 0.612 | P40: =+J40-N40 -> 0 | Q40: 61.2 | R40: =+J40*E$7 -> 0
C41: Irrigation Equipment | D41: 1 | F41: Acre | G41: 0 | I41: 0 | J41: 0 | K41: 0 | M41: 0 | N41: 0 | O41: 0 | P41: 0 | Q41: 0 | R41: 0
C42: Tractors/Self-Propelled | D42: 1 | F42: Acre | G42: 0.4918328719 | I42: 0.4918328719 | J42: 0 | K42: 0 | M42: 0 | N42: 0 | O42: 0.4918328719 | P42: 0 | Q42: 49.18328719 | R42: 0
C43: Implements | D43: 1 | F43: Acre | G43: 0.1576394138 | I43: 0.1576394138 | J43: 0 | K43: 0 | M43: 0 | N43: 0 | O43: 0.1576394138 | P43: 0 | Q43: 15.76394138 | R43: 0
I44: 0 | J44: 0 | K44: 0 | M44: 0 | N44: 0 | O44: 0 | P44: 0 | Q44: 0 | R44: 0
I45: 0 | J45: 0 | K45: 0 | M45: 0 | N45: 0 | O45: 0 | P45: 0 | Q45: 0 | R45: 0
B46: Interest on Credit Line | G46: 0.08 | I46: 5.029874554 | J46: =+SUM(J17:J45)/2*H46 -> 0 | M46: 0 | N46: =+SUM(N17:N45)/2*L46 -> 0 | O46: 5.029874554 | P46: =+SUM(P17:P45)/2*L46 -> 0 | Q46: 502.9874554 | R46: =+J46*E$7 -> 0
A47: Total Variable Costs | I47: 169.8020918 | J47: =SUM(J18:J46) -> 0 | M47: 0 | N47: =SUM(N18:N46) -> 0 | O47: 169.8020918 | P47: =SUM(P18:P46) -> 0 | Q47: 16980.20918 | R47: =SUM(R18:R46) -> 0
A48: Planned Returns Above Variable Costs: | I48: -169.8020918 | J48: =+J13-J47 -> 0 | M48: 0 | N48: =+N13-N47 -> 0 | O48: -169.8020918 | P48: =+P13-P47 -> 0 | Q48: -16980.20918 | R48: =+R13-R47 -> 0
B49: Breakeven Price to Cover Variable Costs | G49: n/a | H49: =IF(E10=0,"n/a",(YVarExp-(YTotExp+YTotRet-J10))/E10) -> n/a
Q50: Enterprise | R50: Enterprise
A51: FIXED COSTS | D51: Quantity | E51: Quantity | F51: Units | G51: $/Unit | H51: $/Unit | I51: Total | J51: Total | K51: Share | L51: Share | M51: Landlord | N51: Landlord | O51: Tenant | P51: Tenant | Q51: Total | R51: Total
B52: Machinery Depreciation
C53: Pickup/General Use Equipment | D53: 1 | F53: Acre | G53: 0.6426 | I53: 0.6426 | J53: =E53*H53 -> 0 | K53: 0 | M53: 0 | N53: =J53*L53 -> 0 | O53: 0.6426 | P53: =+J53-N53 -> 0 | Q53: 64.26 | R53: =+J53*E$7 -> 0
C54: Tractors/Self-Propelled | D54: 1 | F54: Acre | G54: 0.4065818408 | I54: 0.4065818408 | J54: 0 | K54: 0 | M54: 0 | N54: =J54*L54 -> 0 | O54: 0.4065818408 | P54: 0 | Q54: 40.65818408 | R54: 0
C55: Implements | D55: 1 | F55: Acre | G55: 0.1418754724 | I55: 0.1418754724 | J55: 0 | K55: 0 | M55: 0 | N55: =J55*L55 -> 0 | O55: 0.1418754724 | P55: 0 | Q55: 14.18754724 | R55: 0
B56: Equipment Investment
C57: Pickup/General Use Equipment | D57: 4.437 | F57: Dollars | G57: 0.08 | I57: 0.35496 | J57: =E57*H57 -> 0 | K57: 0 | M57: 0 | N57: =J57*L57 -> 0 | O57: 0.35496 | P57: =+J57-N57 -> 0 | Q57: 35.496 | R57: =+J57*E$7 -> 0
C58: Tractors/Self-Propelled | D58: 3.167403695 | F58: Dollars | G58: 0.08 | I58: 0.2533922956 | J58: 0 | K58: 0 | M58: 0 | N58: =J58*L58 -> 0 | O58: 0.2533922956 | P58: 0 | Q58: 25.33922956 | R58: 0
C59: Implements | D59: 0.6069117431 | F59: Dollars | G59: 0.08 | I59: 0.04855293945 | J59: 0 | K59: 0 | M59: 0 | N59: =J59*L59 -> 0 | O59: 0.04855293945 | P59: 0 | Q59: 4.855293945 | R59: 0
B60: Salaried Labor | D60: 1 | F60: Acre | G60: 0 | I60: 0 | J60: 0 | K60: 0 | M60: 0 | N60: =J60*L60 -> 0 | O60: 0 | P60: =+J60-N60 -> 0 | Q60: 0 | R60: =+J60*E$7 -> 0
B61: Management Fee, Owner/Operator Labor | D61: 1 | F61: Acre | G61: 0 | I61: 0 | J61: 0 | K61: 0 | M61: 0 | N61: 0 | O61: 0 | P61: 0 | Q61: 0 | R61: 0
B62: Allocated Establishment Cost | D62: 1 | F62: Acre | G62: 0 | I62: 0 | J62: 0 | K62: 0 | M62: 0 | N62: 0 | O62: 0 | P62: 0 | Q62: 0 | R62: 0
B63: Bermuda Pasture Rent | D63: 1 | F63: Acre | G63: 25 | I63: 25 | J63: 0 | K63: 0 | M63: 0 | N63: 0 | O63: 25 | P63: 0 | Q63: 2500 | R63: 0
B64: Property Taxes | D64: 1 | F64: Acre | G64: 0 | I64: 0 | J64: 0 | K64: 0 | M64: 0 | N64: 0 | O64: 0 | P64: 0 | Q64: 0 | R64: 0
B65: Whole Farm Insurance | D65: 1 | F65: Acre | G65: 0 | I65: 0 | J65: 0 | K65: 0 | M65: 0 | N65: 0 | O65: 0 | P65: 0 | Q65: 0 | R65: 0
D66: 1 | G66: 0 | I66: 0 | J66: 0 | K66: 0 | M66: 0 | N66: 0 | O66: 0 | P66: 0 | Q66: 0 | R66: 0
D67: 1 | G67: 0 | I67: 0 | J67: =E67*H67 -> 0 | K67: 0 | M67: 0 | N67: 0 | O67: 0 | P67: 0 | Q67: 0 | R67: 0
A68: Total Fixed Costs | I68: 26.84796255 | J68: =+SUM(J53:J67) -> 0 | M68: 0 | N68: =+SUM(N53:N67) -> 0 | O68: 26.84796255 | P68: =+SUM(P53:P67) -> 0 | Q68: 2684.796255 | R68: =+SUM(R53:R67) -> 0
A69: Total Specified Costs | I69: 196.6500544 | J69: =+J47+J68 -> 0 | M69: 0 | N69: =+N47+N68 -> 0 | O69: 196.6500544 | P69: =+P47+P68 -> 0 | Q69: 19665.00544 | R69: =+R47+R68 -> 0
A71: Returns Above Specified Costs | I71: -196.6500544 | J71: =+J13-J69 -> 0 | M71: 0 | N71: =+N13-N69 -> 0 | O71: -196.6500544 | P71: =+P13-P69 -> 0 | Q71: -19665.00544 | R71: =+R13-R69 -> 0
A73: Breakeven Price to Cover Total Costs | G73: n/a | H73: =IF(E10=0,"n/a",(YTotExp-(YTotExp+YTotRet-J10))/E10) -> n/a
D75: Example Breakeven Prices
B76: Example | C76: Example | D76: To Cover | G76: To Cover
B77: Yield | C77: Yield | D77: Variable | G77: Total
B78: Percent | D78: Costs | G78: Costs
B79: 0.75 | C79: 0 | D79: 0 | G79: 0
B80: 0.9 | C80: 0 | D80: 0 | G80: 0
B81: 1 | C81: 0 | D81: 0 | G81: 0
B82: 1.1 | C82: 0 | D82: 0 | G82: 0
B83: 1.25 | C83: 0 | D83: 0 | G83: 0
D85: Your Breakeven Prices
B86: Your | C86: Your | E86: To Cover | H86: To Cover
B87: Yield | C87: Yield | E87: Variable | H87: Total
B88: Percent | E88: Costs | H88: Costs
B89: 0.75 | C89: =E10*YPER1 -> 0 | E89: =IF($E$10=0,0,(YVarExp-(YTotExp+YTotRet-J10))/($E$10*YPER1)) -> 0 | H89: =IF($E$10=0,0,(YTotExp-(YTotExp+YTotRet-J10))/($E$10*YPER1)) -> 0
B90: 0.9 | C90: =E10*YPER2 -> 0 | E90: =IF($E$10=0,0,(YVarExp-(YTotExp+YTotRet-J10))/($E$10*YPER2)) -> 0 | H90: =IF($E$10=0,0,(YTotExp-(YTotExp+YTotRet-J10))/($E$10*YPER2)) -> 0
B91: 1 | C91: =+E10 -> 0 | E91: =IF($E$10=0,0,(YVarExp-(YTotExp+YTotRet-J10))/($E$10*YPER3)) -> 0 | H91: =IF($E$10=0,0,(YTotExp-(YTotExp+YTotRet-J10))/($E$10*YPER3)) -> 0
B92: 1.1 | C92: =E10*YPER4 -> 0 | E92: =IF($E$10=0,0,(YVarExp-(YTotExp+YTotRet-J10))/($E$10*YPER4)) -> 0 | H92: =IF($E$10=0,0,(YTotExp-(YTotExp+YTotRet-J10))/($E$10*YPER4)) -> 0
B93: 1.25 | C93: =E10*YPER5 -> 0 | E93: =IF($E$10=0,0,(YVarExp-(YTotExp+YTotRet-J10))/($E$10*YPER5)) -> 0 | H93: =IF($E$10=0,0,(YTotExp-(YTotExp+YTotRet-J10))/($E$10*YPER5)) -> 0
A95: Developed by Vanessa Olson, Extension Forage Specialist; and, Jason Banta, Extension Beef Cattle Specialist, Texas A&M AgriLife Extension Service. For more information, contact: Vanessa Olson or Jason Banta at 903-834-6191.
A97: Information presented is prepared solely as a general guide and not intended to recognize or predict the costs and returns from any one operation. Brand names are mentioned only as examples and imply no endorsement.

Sheet CoastalOverseed
A1: Projections for Planning Purposes Only -- Not to be Used without Updating
A2: 2024 Estimated Costs and Returns per Acre
A3: Coastal Bermudagrass Pasture, Overseeded Rye and Ryegrass
A4: Enter your name for this budget in the cell above.
A5: Enter Your Values in the cells highlighed in MAROON.
E6: Your Acres | R6: Your
C7: Crop Acres | D7: 100 | L7: Your | Q7: Enterprise | R7: Enterprise
E8: Your | H8: Your | I8: Cash | J8: Your | K8: Landlord | L8: Landlord | N8: Your | P8: Your | Q8: Total | R8: Total
A9: REVENUE | D9: Quantity | E9: Quantity | F9: Units | G9: $/Unit | H9: $/Unit | I9: Total | J9: Total | K9: Share | L9: Share | M9: Landlord | N9: Landlord | O9: Tenant | P9: Tenant | Q9: (100 acres) | R9: ="(" & E7 & " acres)" -> ( acres)
B10: 0 | D10: 0 | G10: 0 | I10: 0 | J10: =E10*H10 -> 0 | K10: 0 | M10: 0 | N10: =J10*L10 -> 0 | O10: 0 | P10: =+J10-N10 -> 0 | Q10: 0 | R10: =+J10*E$7 -> 0
D11: 0 | G11: 0 | I11: 0 | J11: 0 | K11: 0 | M11: 0 | N11: 0 | O11: 0 | P11: =+J11-N11 -> 0 | Q11: 0 | R11: 0
D12: 0 | G12: 0 | I12: 0 | J12: 0 | K12: 0 | M12: 0 | N12: 0 | O12: 0 | P12: 0 | Q12: 0 | R12: 0
A13: Total Revenue | I13: 0 | J13: =SUM(J10:J12) -> 0 | M13: 0 | N13: =SUM(N10:N12) -> 0 | O13: 0 | P13: =SUM(P10:P12) -> 0 | Q13: 0 | R13: =SUM(R10:R12) -> 0
Q14: Enterprise | R14: Enterprise
A15: VARIABLE COSTS | D15: Quantity | E15: Quantity | F15: Units | G15: $/Unit | H15: $/Unit | I15: Total | J15: Total | K15: Share | L15: Share | M15: Landlord | N15: Landlord | O15: Tenant | P15: Tenant | Q15: Total | R15: Total
A16: Production Costs
B17: Fertilizer
C18: Nitrogen | D18: 300 | F18: Pound | G18: 0.55 | I18: 165 | J18: =E18*H18 -> 0 | K18: 0 | M18: 0 | N18: =J18*L18 -> 0 | O18: 165 | P18: =+J18-N18 -> 0 | Q18: 16500 | R18: =+J18*E$7 -> 0
C19: Phosphate | D19: 15 | F19: Pound | G19: 0.66 | I19: 9.9 | J19: 0 | K19: 0 | M19: 0 | N19: 0 | O19: 9.9 | P19: 0 | Q19: 990 | R19: 0
C20: Potash | D20: 60 | F20: Pound | G20: 0.3 | I20: 18 | J20: 0 | K20: 0 | M20: 0 | N20: 0 | O20: 18 | P20: 0 | Q20: 1800 | R20: 0
C21: Lime | D21: 0.333333 | F21: Ton | G21: 65 | I21: 21.666645 | J21: 0 | K21: 0 | M21: 0 | N21: 0 | O21: 21.666645 | P21: 0 | Q21: 2166.6645 | R21: 0
B22: Herbicide
C23: Pasture Herbicide | D23: 1 | F23: Acre | G23: 10 | I23: 10 | J23: 0 | K23: 0 | M23: 0 | N23: 0 | O23: 10 | P23: 0 | Q23: 1000 | R23: 0
B24: Seed
C25: Seed - Elbon Rye | D25: 100 | F25: Pound | G25: 0.32 | I25: 32 | J25: 0 | K25: 0 | M25: 0 | N25: 0 | O25: 32 | P25: 0 | Q25: 3200 | R25: 0
C26: Seed - Ryegrass | D26: 25 | F26: Pound | G26: 0.9 | I26: 22.5 | J26: 0 | K26: 0 | M26: 0 | N26: 0 | O26: 22.5 | P26: 0 | Q26: 2250 | R26: 0
D27: 0 | G27: 0 | I27: 0 | J27: 0 | K27: 0 | M27: 0 | N27: 0 | O27: 0 | P27: 0 | Q27: 0 | R27: 0
D28: 0 | G28: 0 | I28: 0 | J28: 0 | K28: 0 | M28: 0 | N28: 0 | O28: 0 | P28: 0 | Q28: 0 | R28: 0
D29: 0 | G29: 0 | I29: 0 | J29: =E29*H29 -> 0 | K29: 0 | M29: 0 | N29: =J29*L29 -> 0 | O29: 0 | P29: =+J29-N29 -> 0 | Q29: 0 | R29: =+J29*E$7 -> 0
B30: Machinery Labor
C31: Tractors/Self-Propelled | D31: 0.4 | F31: Hour | G31: 17.21 | I31: 6.884 | J31: =E31*H31 -> 0 | K31: 0 | M31: 0 | N31: =J31*L31 -> 0 | O31: 6.884 | P31: =+J31-N31 -> 0 | Q31: 688.4 | R31: =+J31*E$7 -> 0
C32: Other Labor | D32: 0 | F32: Hour | G32: 17.21 | I32: 0 | J32: =E32*H32 -> 0 | K32: 0 | M32: 0 | N32: =J32*L32 -> 0 | O32: 0 | P32: =+J32-N32 -> 0 | Q32: 0 | R32: =+J32*E$7 -> 0
B34: Diesel Fuel
C35: Pickup/General Use Equipment | D35: 1 | F35: Acre | G35: 0 | I35: 0 | J35: =E35*H35 -> 0 | K35: 0 | M35: 0 | N35: =J35*L35 -> 0 | O35: 0 | P35: =+J35-N35 -> 0 | Q35: 0 | R35: =+J35*E$7 -> 0
C36: Tractors/Self-Propelled | D36: 1.62 | F36: Gallon | G36: 3.6 | I36: 5.832 | J36: =E36*H36 -> 0 | K36: 0 | M36: 0 | N36: =J36*L36 -> 0 | O36: 5.832 | P36: =+J36-N36 -> 0 | Q36: 583.2 | R36: =+J36*E$7 -> 0
B38: Gasoline
C39: Pickup/General Use Equipment | D39: 1 | F39: Acre | G39: 1.575 | I39: 1.575 | J39: =E39*H39 -> 0 | K39: 0 | M39: 0 | N39: =J39*L39 -> 0 | O39: 1.575 | P39: =+J39-N39 -> 0 | Q39: 157.5 | R39: =+J39*E$7 -> 0
C40: Tractors/Self-Propelled | D40: 0 | F40: Gallon | G40: 3.15 | I40: 0 | J40: =E40*H40 -> 0 | K40: 0 | M40: 0 | N40: =J40*L40 -> 0 | O40: 0 | P40: =+J40-N40 -> 0 | Q40: 0 | R40: =+J40*E$7 -> 0
B42: Repairs & Maintenance
C43: Pickup/General Use Equipment | D43: 1 | F43: Acre | G43: 0.612 | I43: 0.612 | J43: =E43*H43 -> 0 | K43: 0 | M43: 0 | N43: =J43*L43 -> 0 | O43: 0.612 | P43: =+J43-N43 -> 0 | Q43: 61.2 | R43: =+J43*E$7 -> 0
C44: Irrigation Equipment | D44: 1 | F44: Acre | G44: 0 | I44: 0 | J44: 0 | K44: 0 | M44: 0 | N44: 0 | O44: 0 | P44: 0 | Q44: 0 | R44: 0
C45: Tractors/Self-Propelled | D45: 1 | F45: Acre | G45: 2.150264439 | I45: 2.150264439 | J45: 0 | K45: 0 | M45: 0 | N45: 0 | O45: 2.150264439 | P45: 0 | Q45: 215.0264439 | R45: 0
C46: Implements | D46: 1 | F46: Acre | G46: 5.441328078 | I46: 5.441328078 | J46: 0 | K46: 0 | M46: 0 | N46: 0 | O46: 5.441328078 | P46: 0 | Q46: 544.1328078 | R46: 0
I47: 0 | J47: 0 | K47: 0 | M47: 0 | N47: 0 | O47: 0 | P47: 0 | Q47: 0 | R47: 0
I48: 0 | J48: 0 | K48: 0 | M48: 0 | N48: 0 | O48: 0 | P48: 0 | Q48: 0 | R48: 0
B49: Interest on Credit Line | G49: 0.08 | I49: 14.58644845 | J49: =+SUM(J17:J48)/2*H49 -> 0 | M49: 0 | N49: =+SUM(N17:N48)/2*L49 -> 0 | O49: 14.58644845 | P49: =+SUM(P17:P48)/2*L49 -> 0 | Q49: 1458.644845 | R49: =+J49*E$7 -> 0
A50: Total Variable Costs | I50: 316.147686 | J50: =SUM(J18:J49) -> 0 | M50: 0 | N50: =SUM(N18:N49) -> 0 | O50: 316.147686 | P50: =SUM(P18:P49) -> 0 | Q50: 31614.7686 | R50: =SUM(R18:R49) -> 0
A51: Planned Returns Above Variable Costs: | I51: -316.147686 | J51: =+J13-J50 -> 0 | M51: 0 | N51: =+N13-N50 -> 0 | O51: -316.147686 | P51: =+P13-P50 -> 0 | Q51: -31614.7686 | R51: =+R13-R50 -> 0
B52: Breakeven Price to Cover Variable Costs | G52: n/a | H52: =IF(E10=0,"n/a",(YVarExp-(YTotExp+YTotRet-J10))/E10) -> n/a
Q53: Enterprise | R53: Enterprise
A54: FIXED COSTS | D54: Quantity | E54: Quantity | F54: Units | G54: $/Unit | H54: $/Unit | I54: Total | J54: Total | K54: Share | L54: Share | M54: Landlord | N54: Landlord | O54: Tenant | P54: Tenant | Q54: Total | R54: Total
B55: Machinery Depreciation
C56: Pickup/General Use Equipment | D56: 1 | F56: Acre | G56: 0.6426 | I56: 0.6426 | J56: =E56*H56 -> 0 | K56: 0 | M56: 0 | N56: =J56*L56 -> 0 | O56: 0.6426 | P56: =+J56-N56 -> 0 | Q56: 64.26 | R56: =+J56*E$7 -> 0
C57: Tractors/Self-Propelled | D57: 1 | F57: Acre | G57: 1.777551937 | I57: 1.777551937 | J57: 0 | K57: 0 | M57: 0 | N57: =J57*L57 -> 0 | O57: 1.777551937 | P57: 0 | Q57: 177.7551937 | R57: 0
C58: Implements | D58: 1 | F58: Acre | G58: 6.715472364 | I58: 6.715472364 | J58: 0 | K58: 0 | M58: 0 | N58: =J58*L58 -> 0 | O58: 6.715472364 | P58: 0 | Q58: 671.5472364 | R58: 0
B59: Equipment Investment
C60: Pickup/General Use Equipment | D60: 4.437 | F60: Dollars | G60: 0.08 | I60: 0.35496 | J60: =E60*H60 -> 0 | K60: 0 | M60: 0 | N60: =J60*L60 -> 0 | O60: 0.35496 | P60: =+J60-N60 -> 0 | Q60: 35.496 | R60: =+J60*E$7 -> 0
C61: Tractors/Self-Propelled | D61: 13.84770299 | F61: Dollars | G61: 0.08 | I61: 1.107816239 | J61: 0 | K61: 0 | M61: 0 | N61: =J61*L61 -> 0 | O61: 1.107816239 | P61: 0 | Q61: 110.7816239 | R61: 0
C62: Implements | D62: 28.72729845 | F62: Dollars | G62: 0.08 | I62: 2.298183876 | J62: 0 | K62: 0 | M62: 0 | N62: =J62*L62 -> 0 | O62: 2.298183876 | P62: 0 | Q62: 229.8183876 | R62: 0
B63: Salaried Labor | D63: 1 | F63: Acre | G63: 0 | I63: 0 | J63: 0 | K63: 0 | M63: 0 | N63: =J63*L63 -> 0 | O63: 0 | P63: =+J63-N63 -> 0 | Q63: 0 | R63: =+J63*E$7 -> 0
B64: Management Fee, Owner/Operator Labor | D64: 1 | F64: Acre | G64: 0 | I64: 0 | J64: 0 | K64: 0 | M64: 0 | N64: 0 | O64: 0 | P64: 0 | Q64: 0 | R64: 0
B65: Allocated Establishment Cost | D65: 1 | F65: Acre | G65: 0 | I65: 0 | J65: 0 | K65: 0 | M65: 0 | N65: 0 | O65: 0 | P65: 0 | Q65: 0 | R65: 0
B66: Bermuda Pasture Rent | D66: 1 | F66: Acre | G66: 25 | I66: 25 | J66: 0 | K66: 0 | M66: 0 | N66: 0 | O66: 25 | P66: 0 | Q66: 2500 | R66: 0
B67: Property Taxes | D67: 1 | F67: Acre | G67: 0 | I67: 0 | J67: 0 | K67: 0 | M67: 0 | N67: 0 | O67: 0 | P67: 0 | Q67: 0 | R67: 0
B68: Whole Farm Insurance | D68: 1 | F68: Acre | G68: 0 | I68: 0 | J68: 0 | K68: 0 | M68: 0 | N68: 0 | O68: 0 | P68: 0 | Q68: 0 | R68: 0
D69: 1 | G69: 0 | I69: 0 | J69: 0 | K69: 0 | M69: 0 | N69: 0 | O69: 0 | P69: 0 | Q69: 0 | R69: 0
D70: 1 | G70: 0 | I70: 0 | J70: =E70*H70 -> 0 | K70: 0 | M70: 0 | N70: 0 | O70: 0 | P70: 0 | Q70: 0 | R70: 0
A71: Total Fixed Costs | I71: 37.89658442 | J71: =+SUM(J56:J70) -> 0 | M71: 0 | N71: =+SUM(N56:N70) -> 0 | O71: 37.89658442 | P71: =+SUM(P56:P70) -> 0 | Q71: 3789.658442 | R71: =+SUM(R56:R70) -> 0
A72: Total Specified Costs | I72: 354.0442704 | J72: =+J50+J71 -> 0 | M72: 0 | N72: =+N50+N71 -> 0 | O72: 354.0442704 | P72: =+P50+P71 -> 0 | Q72: 35404.42704 | R72: =+R50+R71 -> 0
A74: Returns Above Specified Costs | I74: -354.0442704 | J74: =+J13-J72 -> 0 | M74: 0 | N74: =+N13-N72 -> 0 | O74: -354.0442704 | P74: =+P13-P72 -> 0 | Q74: -35404.42704 | R74: =+R13-R72 -> 0
A76: Breakeven Price to Cover Total Costs | G76: n/a | H76: =IF(E10=0,"n/a",(YTotExp-(YTotExp+YTotRet-J10))/E10) -> n/a
D78: Example Breakeven Prices
B79: Example | C79: Example | D79: To Cover | G79: To Cover
B80: Yield | C80: Yield | D80: Variable | G80: Total
B81: Percent | D81: Costs | G81: Costs
B82: 0.75 | C82: 0 | D82: 0 | G82: 0
B83: 0.9 | C83: 0 | D83: 0 | G83: 0
B84: 1 | C84: 0 | D84: 0 | G84: 0
B85: 1.1 | C85: 0 | D85: 0 | G85: 0
B86: 1.25 | C86: 0 | D86: 0 | G86: 0
D88: Your Breakeven Prices
B89: Your | C89: Your | E89: To Cover | H89: To Cover
B90: Yield | C90: Yield | E90: Variable | H90: Total
B91: Percent | E91: Costs | H91: Costs
B92: 0.75 | C92: =E10*YPER1 -> 0 | E92: =IF($E$10=0,0,(YVarExp-(YTotExp+YTotRet-J10))/($E$10*YPER1)) -> 0 | H92: =IF($E$10=0,0,(YTotExp-(YTotExp+YTotRet-J10))/($E$10*YPER1)) -> 0
B93: 0.9 | C93: =E10*YPER2 -> 0 | E93: =IF($E$10=0,0,(YVarExp-(YTotExp+YTotRet-J10))/($E$10*YPER2)) -> 0 | H93: =IF($E$10=0,0,(YTotExp-(YTotExp+YTotRet-J10))/($E$10*YPER2)) -> 0
B94: 1 | C94: =+E10 -> 0 | E94: =IF($E$10=0,0,(YVarExp-(YTotExp+YTotRet-J10))/($E$10*YPER3)) -> 0 | H94: =IF($E$10=0,0,(YTotExp-(YTotExp+YTotRet-J10))/($E$10*YPER3)) -> 0
B95: 1.1 | C95: =E10*YPER4 -> 0 | E95: =IF($E$10=0,0,(YVarExp-(YTotExp+YTotRet-J10))/($E$10*YPER4)) -> 0 | H95: =IF($E$10=0,0,(YTotExp-(YTotExp+YTotRet-J10))/($E$10*YPER4)) -> 0
B96: 1.25 | C96: =E10*YPER5 -> 0 | E96: =IF($E$10=0,0,(YVarExp-(YTotExp+YTotRet-J10))/($E$10*YPER5)) -> 0 | H96: =IF($E$10=0,0,(YTotExp-(YTotExp+YTotRet-J10))/($E$10*YPER5)) -> 0
A98: Developed by Vanessa Olson, Extension Forage Specialist; and, Jason Banta, Extension Beef Cattle Specialist, Texas A&M AgriLife Extension Service. For more information, contact: Vanessa Olson or Jason Banta at 903-834-6191.
A100: Information presented is prepared solely as a general guide and not intended to recognize or predict the costs and returns from any one operation. Brand names are mentioned only as examples and imply no endorsement.

Sheet SmallGrainPasture
A1: Projections for Planning Purposes Only -- Not to be Used without Updating
A2: 2024 Estimated Costs and Returns per Acre
A3: Small Grains - Ryegrass Winter Pasture
A4: Enter your name for this budget in the cell above.
A5: Enter Your Values in the cells highlighed in MAROON.
E6: Your Acres | R6: Your
C7: Crop Acres | D7: 100 | L7: Your | Q7: Enterprise | R7: Enterprise
E8: Your | H8: Your | I8: Cash | J8: Your | K8: Landlord | L8: Landlord | N8: Your | P8: Your | Q8: Total | R8: Total
A9: REVENUE | D9: Quantity | E9: Quantity | F9: Units | G9: $/Unit | H9: $/Unit | I9: Total | J9: Total | K9: Share | L9: Share | M9: Landlord | N9: Landlord | O9: Tenant | P9: Tenant | Q9: (100 acres) | R9: ="(" & E7 & " acres)" -> ( acres)
B10: 0 | D10: 0 | G10: 0 | I10: 0 | J10: =E10*H10 -> 0 | K10: 0 | M10: 0 | N10: =J10*L10 -> 0 | O10: 0 | P10: =+J10-N10 -> 0 | Q10: 0 | R10: =+J10*E$7 -> 0
D11: 0 | G11: 0 | I11: 0 | J11: 0 | K11: 0 | M11: 0 | N11: 0 | O11: 0 | P11: =+J11-N11 -> 0 | Q11: 0 | R11: 0
D12: 0 | G12: 0 | I12: 0 | J12: 0 | K12: 0 | M12: 0 | N12: 0 | O12: 0 | P12: 0 | Q12: 0 | R12: 0
A13: Total Revenue | I13: 0 | J13: =SUM(J10:J12) -> 0 | M13: 0 | N13: =SUM(N10:N12) -> 0 | O13: 0 | P13: =SUM(P10:P12) -> 0 | Q13: 0 | R13: =SUM(R10:R12) -> 0
Q14: Enterprise | R14: Enterprise
A15: VARIABLE COSTS | D15: Quantity | E15: Quantity | F15: Units | G15: $/Unit | H15: $/Unit | I15: Total | J15: Total | K15: Share | L15: Share | M15: Landlord | N15: Landlord | O15: Tenant | P15: Tenant | Q15: Total | R15: Total
A16: Production Costs
B17: Fertilizer
C18: Nitrogen | D18: 180 | F18: Pound | G18: 0.55 | I18: 99 | J18: =E18*H18 -> 0 | K18: 0 | M18: 0 | N18: =J18*L18 -> 0 | O18: 99 | P18: =+J18-N18 -> 0 | Q18: 9900 | R18: =+J18*E$7 -> 0
C19: Phosphate | D19: 30 | F19: Pound | G19: 0.66 | I19: 19.8 | J19: 0 | K19: 0 | M19: 0 | N19: 0 | O19: 19.8 | P19: 0 | Q19: 1980 | R19: 0
C20: Potash | D20: 60 | F20: Pound | G20: 0.3 | I20: 18 | J20: 0 | K20: 0 | M20: 0 | N20: 0 | O20: 18 | P20: 0 | Q20: 1800 | R20: 0
B21: Seed
C22: Seed - Elbon Rye | D22: 100 | F22: Pound | G22: 0.32 | I22: 32 | J22: 0 | K22: 0 | M22: 0 | N22: 0 | O22: 32 | P22: 0 | Q22: 3200 | R22: 0
C23: Seed - Ryegrass | D23: 25 | F23: Pound | G23: 0.9 | I23: 22.5 | J23: 0 | K23: 0 | M23: 0 | N23: 0 | O23: 22.5 | P23: 0 | Q23: 2250 | R23: 0
D24: 0 | G24: 0 | I24: 0 | J24: 0 | K24: 0 | M24: 0 | N24: 0 | O24: 0 | P24: 0 | Q24: 0 | R24: 0
D25: 0 | G25: 0 | I25: 0 | J25: 0 | K25: 0 | M25: 0 | N25: 0 | O25: 0 | P25: 0 | Q25: 0 | R25: 0
D26: 0 | G26: 0 | I26: 0 | J26: =E26*H26 -> 0 | K26: 0 | M26: 0 | N26: =J26*L26 -> 0 | O26: 0 | P26: =+J26-N26 -> 0 | Q26: 0 | R26: =+J26*E$7 -> 0
B27: Machinery Labor
C28: Tractors/Self-Propelled | D28: 0.32 | F28: Hour | G28: 17.21 | I28: 5.5072 | J28: =E28*H28 -> 0 | K28: 0 | M28: 0 | N28: =J28*L28 -> 0 | O28: 5.5072 | P28: =+J28-N28 -> 0 | Q28: 550.72 | R28: =+J28*E$7 -> 0
C29: Other Labor | D29: 0 | F29: Hour | G29: 17.21 | I29: 0 | J29: =E29*H29 -> 0 | K29: 0 | M29: 0 | N29: =J29*L29 -> 0 | O29: 0 | P29: =+J29-N29 -> 0 | Q29: 0 | R29: =+J29*E$7 -> 0
B31: Diesel Fuel
C32: Pickup/General Use Equipment | D32: 1 | F32: Acre | G32: 0 | I32: 0 | J32: =E32*H32 -> 0 | K32: 0 | M32: 0 | N32: =J32*L32 -> 0 | O32: 0 | P32: =+J32-N32 -> 0 | Q32: 0 | R32: =+J32*E$7 -> 0
C33: Tractors/Self-Propelled | D33: 1.31 | F33: Gallon | G33: 3.6 | I33: 4.716 | J33: =E33*H33 -> 0 | K33: 0 | M33: 0 | N33: =J33*L33 -> 0 | O33: 4.716 | P33: =+J33-N33 -> 0 | Q33: 471.6 | R33: =+J33*E$7 -> 0
B35: Gasoline
C36: Pickup/General Use Equipment | D36: 1 | F36: Acre | G36: 1.575 | I36: 1.575 | J36: =E36*H36 -> 0 | K36: 0 | M36: 0 | N36: =J36*L36 -> 0 | O36: 1.575 | P36: =+J36-N36 -> 0 | Q36: 157.5 | R36: =+J36*E$7 -> 0
C37: Tractors/Self-Propelled | D37: 0 | F37: Gallon | G37: 3.15 | I37: 0 | J37: =E37*H37 -> 0 | K37: 0 | M37: 0 | N37: =J37*L37 -> 0 | O37: 0 | P37: =+J37-N37 -> 0 | Q37: 0 | R37: =+J37*E$7 -> 0
B39: Repairs & Maintenance
C40: Pickup/General Use Equipment | D40: 1 | F40: Acre | G40: 0.612 | I40: 0.612 | J40: =E40*H40 -> 0 | K40: 0 | M40: 0 | N40: =J40*L40 -> 0 | O40: 0.612 | P40: =+J40-N40 -> 0 | Q40: 61.2 | R40: =+J40*E$7 -> 0
C41: Irrigation Equipment | D41: 1 | F41: Acre | G41: 0 | I41: 0 | J41: 0 | K41: 0 | M41: 0 | N41: 0 | O41: 0 | P41: 0 | Q41: 0 | R41: 0
C42: Tractors/Self-Propelled | D42: 1 | F42: Acre | G42: 1.7749183 | I42: 1.7749183 | J42: 0 | K42: 0 | M42: 0 | N42: 0 | O42: 1.7749183 | P42: 0 | Q42: 177.49183 | R42: 0
C43: Implements | D43: 1 | F43: Acre | G43: 5.283688664 | I43: 5.283688664 | J43: 0 | K43: 0 | M43: 0 | N43: 0 | O43: 5.283688664 | P43: 0 | Q43: 528.3688664 | R43: 0
I44: 0 | J44: 0 | K44: 0 | M44: 0 | N44: 0 | O44: 0 | P44: 0 | Q44: 0 | R44: 0
I45: 0 | J45: 0 | K45: 0 | M45: 0 | N45: 0 | O45: 0 | P45: 0 | Q45: 0 | R45: 0
B46: Interest on Credit Line | G46: 0.08 | I46: 9.097628572 | J46: =+SUM(J17:J45)/2*H46 -> 0 | M46: 0 | N46: =+SUM(N17:N45)/2*L46 -> 0 | O46: 9.097628572 | P46: =+SUM(P17:P45)/2*L46 -> 0 | Q46: 909.7628572 | R46: =+J46*E$7 -> 0
A47: Total Variable Costs | I47: 219.8664355 | J47: =SUM(J18:J46) -> 0 | M47: 0 | N47: =SUM(N18:N46) -> 0 | O47: 219.8664355 | P47: =SUM(P18:P46) -> 0 | Q47: 21986.64355 | R47: =SUM(R18:R46) -> 0
A48: Planned Returns Above Variable Costs: | I48: -219.8664355 | J48: =+J13-J47 -> 0 | M48: 0 | N48: =+N13-N47 -> 0 | O48: -219.8664355 | P48: =+P13-P47 -> 0 | Q48: -21986.64355 | R48: =+R13-R47 -> 0
B49: Breakeven Price to Cover Variable Costs | G49: n/a | H49: =IF(E10=0,"n/a",(YVarExp-(YTotExp+YTotRet-J10))/E10) -> n/a
Q50: Enterprise | R50: Enterprise
A51: FIXED COSTS | D51: Quantity | E51: Quantity | F51: Units | G51: $/Unit | H51: $/Unit | I51: Total | J51: Total | K51: Share | L51: Share | M51: Landlord | N51: Landlord | O51: Tenant | P51: Tenant | Q51: Total | R51: Total
B52: Machinery Depreciation
C53: Pickup/General Use Equipment | D53: 1 | F53: Acre | G53: 0.6426 | I53: 0.6426 | J53: =E53*H53 -> 0 | K53: 0 | M53: 0 | N53: =J53*L53 -> 0 | O53: 0.6426 | P53: =+J53-N53 -> 0 | Q53: 64.26 | R53: =+J53*E$7 -> 0
C54: Tractors/Self-Propelled | D54: 1 | F54: Acre | G54: 1.467265795 | I54: 1.467265795 | J54: 0 | K54: 0 | M54: 0 | N54: =J54*L54 -> 0 | O54: 1.467265795 | P54: 0 | Q54: 146.7265795 | R54: 0
C55: Implements | D55: 1 | F55: Acre | G55: 6.573596891 | I55: 6.573596891 | J55: 0 | K55: 0 | M55: 0 | N55: =J55*L55 -> 0 | O55: 6.573596891 | P55: 0 | Q55: 657.3596891 | R55: 0
B56: Equipment Investment
C57: Pickup/General Use Equipment | D57: 4.437 | F57: Dollars | G57: 0.08 | I57: 0.35496 | J57: =E57*H57 -> 0 | K57: 0 | M57: 0 | N57: =J57*L57 -> 0 | O57: 0.35496 | P57: =+J57-N57 -> 0 | Q57: 35.496 | R57: =+J57*E$7 -> 0
C58: Tractors/Self-Propelled | D58: 11.43047385 | F58: Dollars | G58: 0.08 | I58: 0.9144379083 | J58: 0 | K58: 0 | M58: 0 | N58: =J58*L58 -> 0 | O58: 0.9144379083 | P58: 0 | Q58: 91.44379083 | R58: 0
C59: Implements | D59: 28.1203867 | F59: Dollars | G59: 0.08 | I59: 2.249630936 | J59: 0 | K59: 0 | M59: 0 | N59: =J59*L59 -> 0 | O59: 2.249630936 | P59: 0 | Q59: 224.9630936 | R59: 0
B60: Salaried Labor | D60: 1 | F60: Acre | G60: 0 | I60: 0 | J60: 0 | K60: 0 | M60: 0 | N60: =J60*L60 -> 0 | O60: 0 | P60: =+J60-N60 -> 0 | Q60: 0 | R60: =+J60*E$7 -> 0
B61: Management Fee, Owner/Operator Labor | D61: 1 | F61: Acre | G61: 0 | I61: 0 | J61: 0 | K61: 0 | M61: 0 | N61: 0 | O61: 0 | P61: 0 | Q61: 0 | R61: 0
B62: Allocated Establishment Cost | D62: 1 | F62: Acre | G62: 0 | I62: 0 | J62: 0 | K62: 0 | M62: 0 | N62: 0 | O62: 0 | P62: 0 | Q62: 0 | R62: 0
B63: None | D63: 1 | F63: Acre | G63: 0 | I63: 0 | J63: 0 | K63: 0 | M63: 0 | N63: 0 | O63: 0 | P63: 0 | Q63: 0 | R63: 0
B64: Property Taxes | D64: 1 | F64: Acre | G64: 0 | I64: 0 | J64: 0 | K64: 0 | M64: 0 | N64: 0 | O64: 0 | P64: 0 | Q64: 0 | R64: 0
B65: Whole Farm Insurance | D65: 1 | F65: Acre | G65: 0 | I65: 0 | J65: 0 | K65: 0 | M65: 0 | N65: 0 | O65: 0 | P65: 0 | Q65: 0 | R65: 0
D66: 1 | G66: 0 | I66: 0 | J66: 0 | K66: 0 | M66: 0 | N66: 0 | O66: 0 | P66: 0 | Q66: 0 | R66: 0
D67: 1 | G67: 0 | I67: 0 | J67: =E67*H67 -> 0 | K67: 0 | M67: 0 | N67: 0 | O67: 0 | P67: 0 | Q67: 0 | R67: 0
A68: Total Fixed Costs | I68: 12.20249153 | J68: =+SUM(J53:J67) -> 0 | M68: 0 | N68: =+SUM(N53:N67) -> 0 | O68: 12.20249153 | P68: =+SUM(P53:P67) -> 0 | Q68: 1220.249153 | R68: =+SUM(R53:R67) -> 0
A69: Total Specified Costs | I69: 232.0689271 | J69: =+J47+J68 -> 0 | M69: 0 | N69: =+N47+N68 -> 0 | O69: 232.0689271 | P69: =+P47+P68 -> 0 | Q69: 23206.89271 | R69: =+R47+R68 -> 0
A71: Returns Above Specified Costs | I71: -232.0689271 | J71: =+J13-J69 -> 0 | M71: 0 | N71: =+N13-N69 -> 0 | O71: -232.0689271 | P71: =+P13-P69 -> 0 | Q71: -23206.89271 | R71: =+R13-R69 -> 0
A73: Breakeven Price to Cover Total Costs | G73: n/a | H73: =IF(E10=0,"n/a",(YTotExp-(YTotExp+YTotRet-J10))/E10) -> n/a
D75: Example Breakeven Prices
B76: Example | C76: Example | D76: To Cover | G76: To Cover
B77: Yield | C77: Yield | D77: Variable | G77: Total
B78: Percent | D78: Costs | G78: Costs
B79: 0.75 | C79: 0 | D79: 0 | G79: 0
B80: 0.9 | C80: 0 | D80: 0 | G80: 0
B81: 1 | C81: 0 | D81: 0 | G81: 0
B82: 1.1 | C82: 0 | D82: 0 | G82: 0
B83: 1.25 | C83: 0 | D83: 0 | G83: 0
D85: Your Breakeven Prices
B86: Your | C86: Your | E86: To Cover | H86: To Cover
B87: Yield | C87: Yield | E87: Variable | H87: Total
B88: Percent | E88: Costs | H88: Costs
B89: 0.75 | C89: =E10*YPER1 -> 0 | E89: =IF($E$10=0,0,(YVarExp-(YTotExp+YTotRet-J10))/($E$10*YPER1)) -> 0 | H89: =IF($E$10=0,0,(YTotExp-(YTotExp+YTotRet-J10))/($E$10*YPER1)) -> 0
B90: 0.9 | C90: =E10*YPER2 -> 0 | E90: =IF($E$10=0,0,(YVarExp-(YTotExp+YTotRet-J10))/($E$10*YPER2)) -> 0 | H90: =IF($E$10=0,0,(YTotExp-(YTotExp+YTotRet-J10))/($E$10*YPER2)) -> 0
B91: 1 | C91: =+E10 -> 0 | E91: =IF($E$10=0,0,(YVarExp-(YTotExp+YTotRet-J10))/($E$10*YPER3)) -> 0 | H91: =IF($E$10=0,0,(YTotExp-(YTotExp+YTotRet-J10))/($E$10*YPER3)) -> 0
B92: 1.1 | C92: =E10*YPER4 -> 0 | E92: =IF($E$10=0,0,(YVarExp-(YTotExp+YTotRet-J10))/($E$10*YPER4)) -> 0 | H92: =IF($E$10=0,0,(YTotExp-(YTotExp+YTotRet-J10))/($E$10*YPER4)) -> 0
B93: 1.25 | C93: =E10*YPER5 -> 0 | E93: =IF($E$10=0,0,(YVarExp-(YTotExp+YTotRet-J10))/($E$10*YPER5)) -> 0 | H93: =IF($E$10=0,0,(YTotExp-(YTotExp+YTotRet-J10))/($E$10*YPER5)) -> 0
A95: Developed by Vanessa Olson, Extension Forage Specialist; and, Jason Banta, Extension Beef Cattle Specialist, Texas A&M AgriLife Extension Service. For more information, contact: Vanessa Olson or Jason Banta at 903-834-6191.
A97: Information presented is prepared solely as a general guide and not intended to recognize or predict the costs and returns from any one operation. Brand names are mentioned only as examples and imply no endorsement.

Sheet CowCalf
A1: Projections for Planning Purposes Only -- Not to be Used without Updating
A2: 2024 Estimated Costs and Returns per Animal Unit
A3: Cow-Calf Production
A4: Enter your name for this budget in the cell above.
A5: Enter Your Values in the cells highlighed in MAROON.
E6: Your Cows
B7: Animal Units (AU) | D7: 40 | F7: Animal Unit | N7: Your
B8: Breeding Females | D8: 40 | F8: Calf | G8: Your | M8: Enterprise | N8: Enterprise
E9: Your | F9: Quantity | G9: Quantity | J9: Your | L9: Your | M9: Total | N9: Total
A10: REVENUE | D10: Head | E10: Head | F10: Per Head | G10: Per Head | H10: Units | I10: $/Unit | J10: $/Unit | K10: Total | L10: Total | M10: ="(" & D7 & " AUs)" -> (40 AUs) | N10: ="(" & E7 & " AUs)" -> ( AUs)
B11: Steer | D11: 0.425 | F11: 5.5 | H11: CWT | I11: 285 | K11: 666.1875 | L11: =+E11*G11*J11 -> 0 | M11: 26647.5 | N11: =+L11*E$7 -> 0
B12: Heifer | D12: 0.3 | F12: 5.2 | H12: CWT | I12: 270 | K12: 421.2 | L12: =+E12*G12*J12 -> 0 | M12: 16848 | N12: =+L12*E$7 -> 0
B13: Cull Cow | D13: 0.15 | F13: 10.5 | H13: CWT | I13: 95 | K13: 149.625 | L13: 0 | M13: 5985 | N13: 0
B14: Cull Bull | D14: 0.0125 | F14: 18 | H14: CWT | I14: 120 | K14: 27 | L14: 0 | M14: 1080 | N14: 0
D15: 0 | F15: 0 | I15: 0 | K15: 0 | L15: 0 | M15: 0 | N15: 0
D16: 0 | F16: 0 | I16: 0 | K16: 0 | L16: 0 | M16: 0 | N16: 0
A17: Total Revenue | F17: 389.75 | K17: 1264.0125 | L17: =+SUM(L11:L16) -> 0 | M17: 50560.5 | N17: =+SUM(N11:N16) -> 0
F18: 569.75
F19: 180 | M19: Enterprise | N19: Enterprise
A20: VARIABLE COSTS | F20: Quantity | G20: Quantity | H20: Units | I20: $/Unit | J20: $/Unit | K20: Total | L20: Total | M20: Total | N20: Total
A21: Production Costs
B22: Miscellaneous
C23: Miscellaneous - Cow | F23: 1 | H23: AU | I23: 10 | K23: 10 | L23: =+J23*G23 -> 0 | M23: 400 | N23: =+L23*E$7 -> 0
F24: 1 | I24: 0 | K24: 0 | L24: 0 | M24: 0 | N24: 0
F25: 1 | I25: 0 | K25: 0 | L25: 0 | M25: 0 | N25: 0
B26: Marketing Expense | F26: 1 | H26: AU | I26: 31.95 | K26: 31.95 | L26: 0 | M26: 1278 | N26: 0
B27: Feed
C28: Salt and Mineral - Cow | F28: 1 | H28: Head | I28: 45 | K28: 45 | L28: =+J28*G28 -> 0 | M28: 1800 | N28: =+L28*E$7 -> 0
C29: Hay | F29: 1.5 | H29: Ton | I29: 200 | K29: 300 | L29: 0 | M29: 12000 | N29: 0
F30: 0 | I30: 0 | K30: 0 | L30: 0 | M30: 0 | N30: 0
F31: 0 | I31: 0 | K31: 0 | L31: 0 | M31: 0 | N31: 0
F32: 0 | I32: 0 | K32: 0 | L32: 0 | M32: 0 | N32: 0
B33: Vet. Medicine
C34: Vet Medicine - Cow | F34: 1 | H34: Head | I34: 42 | K34: 42 | L34: 0 | M34: 1680 | N34: =+L34*E$7 -> 0
F35: 0 | I35: 0 | K35: 0 | L35: =+J35*G35 -> 0 | M35: 0 | N35: 0
F36: 0 | I36: 0 | K36: 0 | L36: 0 | M36: 0 | N36: 0
F37: 0 | I37: 0 | K37: 0 | L37: 0 | M37: 0 | N37: 0
B38: Fuel | F38: 1 | H38: AU | I38: 4.8375 | K38: 4.8375 | L38: 0 | M38: 193.5 | N38: 0
B39: Lube (As a % of fuel) | F39: 0.1 | H39: Percent | I39: 4.8375 | K39: 0.48375 | L39: 0 | M39: 19.35 | N39: 0
B40: Repairs | F40: 1 | H40: AU | I40: 2.7906875 | K40: 2.7906875 | L40: 0 | M40: 111.6275 | N40: 0
B41: Labor | F41: 0 | H41: Hours | I41: 0 | K41: 0 | L41: 0 | M41: 0 | N41: 0
B42: Utilities | F42: 1 | H42: AU | I42: 0 | K42: 0 | L42: 0 | M42: 0 | N42: 0
K43: 0 | L43: =+J43*G43 -> 0 | M43: 0 | N43: 0
B44: Purchase Breeding Female | F44: 1 | I44: 0 | K44: 0 | L44: 0 | M44: 0 | N44: 0
B45: Purchase Breeding Male | F45: 1 | I45: 62.5 | K45: 62.5 | L45: 0 | M45: 2500 | N45: 0
B46: Purchase Older Repalcement Female | F46: 1 | I46: 0 | K46: 0 | L46: 0 | M46: 0 | N46: 0
B47: Purchase Younger Repalcement Female | F47: 1 | I47: 0 | K47: 0 | L47: 0 | M47: 0 | N47: 0
B48: Interest on Credit Line | I48: 0.08 | K48: 43.54363361 | L48: =+SUM(L21:L47)/2*J48 -> 0 | M48: 1741.745344 | N48: 0
A49: Total Variable Costs | K49: 543.1055711 | L49: =+SUM(L23:L48) -> 0 | M49: 21724.22284 | N49: =+SUM(N23:N48) -> 0
A51: Planned Returns Above Variable Costs: | K51: 720.9069289 | L51: =+L17-L49 -> 0 | M51: 28836.27716 | N51: =+N17-N49 -> 0
B52: Average Calf Breakeven Price to Cover Variable Costs | I52: 94.02965263 | J52: =IF((E11*G11+E12*G12)=0,"n/a",(L49-SUM(L13:L16))/(E11*G11+E12*G12)) -> n/a | K52: CWT
M53: Enterprise | N53: Enterprise
A54: FIXED COSTS | F54: Quantity | G54: Quantity | H54: Units | I54: $/Unit | J54: $/Unit | K54: Total | L54: Total | M54: Total | N54: Total
B55: Depreciation - Equipment | F55: 1 | H55: AU | I55: 22.8021875 | K55: 22.8021875 | L55: =+G55*J55 -> 0 | M55: 912.0875 | N55: =+L55*E$7 -> 0
B56: Depreciation - Livestock | F56: 1 | H56: AU | I56: 70.71428571 | K56: 70.71428571 | L56: 0 | M56: 2828.571429 | N56: 0
B57: Equipment Investment | F57: 461.9484375 | H57: dollars | I57: 0.08 | K57: 36.955875 | L57: 0 | M57: 1478.235 | N57: 0
B58: Insurance | F58: 1 | H58: AU | I58: 0 | K58: 0 | L58: 0 | M58: 0 | N58: 0
B59: Management Fee, Owner/Operator Labor | F59: 1 | H59: AU | I59: 0 | K59: 0 | L59: =+J59*G59 -> 0 | M59: 0 | N59: 0
B60: Salaried Labor | F60: 1 | H60: AU | I60: 0 | K60: 0 | L60: =+J60*G60 -> 0 | M60: 0 | N60: 0
B61: Pasture Cost | F61: 2.5 | H61: Acres | I61: 196.6500544 | K61: 491.625136 | L61: 0 | M61: 19665.00544 | N61: 0
K62: 0 | L62: =+G62*J62 -> 0 | M62: 0 | N62: 0
K63: 0 | L63: 0 | M63: 0 | N63: 0
A64: Total Fixed Costs | K64: 622.0974842 | L64: =+SUM(L55:L61) -> 0 | M64: 24883.89937 | N64: =+SUM(N55:N61) -> 0
A65: Total Costs | K65: 1165.203055 | L65: =+L49+L64 -> 0 | M65: 46608.12221 | N65: =+N49+N64 -> 0
A66: Planned Returns to Management, Risk, and Profit: | K66: 98.80944471 | L66: =+L17-L65 -> 0 | M66: 3952.377788 | N66: =+N17-N65 -> 0
B67: Average Calf Breakeven Price to Cover Total Costs | I67: 253.644145 | J67: =IF((E11*G11+E12*G12)=0,"n/a",(L65-SUM(L13:L16))/(E11*G11+E12*G12)) -> n/a | K67: CWT
C69: Sensitivity Analysis for Example
C70: Example Weaning Percent | D70: Example Gross Sales per Animal Unit | F70: Pounds Produced per Animal Unit | H70: Example Breakeven Calf Pay Weight to Cover Total Cost | K70: Example Average Breakeven Price to Cover Total Cost
C71: 0.91 | D71: 1340.769265 | F71: 597.2617647 | H71: 466.2288683 | K71: 236.9203553
C72: 0.88 | D72: 1302.390882 | F72: 583.5058824 | H72: 485.3889587 | K72: 244.9971855
C73: 0.85 | D73: 1264.0125 | F73: 569.75 | H73: 506.1913427 | K73: 253.644145
C74: 0.82 | D74: 1225.634118 | F74: 555.9941176 | H74: 528.8566267 | K74: 262.9238089
C75: 0.79 | D75: 1187.255735 | F75: 542.2382353 | H75: 553.6467811 | K75: 272.9082573
D77: ="Example Male "&F8&" Price" -> Example Male Calf Price | K77: =+I11 -> 285
D78: ="Example Female "&F8&" Price" -> Example Female Calf Price | K78: =+I12 -> 270
D79: ="Example Weighted Average "&F8&" Price ($/cwt)" -> Example Weighted Average Calf Price ($/cwt) | K79: =+(K11+K12)/(D11*F11+D12*F12) -> 278.9961514
C80: Sensitivity Analysis for Your Values
C81: Your Weaning Percent | D81: ="Your Gross Sales per "&F7 -> Your Gross Sales per Animal Unit | F81: ="Pounds Produced per "&F7 -> Pounds Produced per Animal Unit | H81: ="Your Breakeven "&F8&" Pay Weight to Cover Total Cost" -> Your Breakeven Calf Pay Weight to Cover Total Cost | K81: Your Average Breakeven Price to Cover Total Cost
C82: =+C83+C71-C72 -> 1.06 | D82: =+IF($C$84=0,0,$L$17-$L$11-$L$12+($L$11+$L$12)*C82/$C$84) -> 0 | F82: =IF($C$84=0,0,$M$88*C82/$C$84+$M$89) -> 0 | H82: =IF($D$84=0,0,(YTotExp-(YTotRet+YTotExp-$L$11-$L$12))/(YPrice/100)/(C82-$E$13*$E$7/$E$8)/($E$8/$E$7)) -> 0 | K82: =IF(F82-$M$89=0,0,(YTotExp-(YTotRet+YTotExp-$L$11-$L$12))/(F82-$M$89)*100) -> 0
C83: =+C84+C72-C73 -> 1.03 | D83: =+IF($C$84=0,0,$L$17-$L$11-$L$12+($L$11+$L$12)*C83/$C$84) -> 0 | F83: =IF($C$84=0,0,$M$88*C83/$C$84+$M$89) -> 0 | H83: =IF($D$84=0,0,(YTotExp-(YTotRet+YTotExp-$L$11-$L$12))/(YPrice/100)/(C83-$E$13*$E$7/$E$8)/($E$8/$E$7)) -> 0 | K83: =IF(F83-$M$89=0,0,(YTotExp-(YTotRet+YTotExp-$L$11-$L$12))/(F83-$M$89)*100) -> 0
C84: 1 | D84: =+L17 -> 0 | F84: =M88+M89 -> 0 | H84: =IF($D$84=0,0,(YTotExp-(YTotRet+YTotExp-$L$11-$L$12))/(YPrice/100)/(C84-$E$13*$E$7/$E$8)/($E$8/$E$7)) -> 0 | K84: =IF(F84-$M$89=0,0,(YTotExp-(YTotRet+YTotExp-$L$11-$L$12))/(F84-$M$89)*100) -> 0
C85: =+C84+C74-C73 -> 0.97 | D85: =+IF($C$84=0,0,$L$17-$L$11-$L$12+($L$11+$L$12)*C85/$C$84) -> 0 | F85: =IF($C$84=0,0,$M$88*C85/$C$84+$M$89) -> 0 | H85: =IF($D$84=0,0,(YTotExp-(YTotRet+YTotExp-$L$11-$L$12))/(YPrice/100)/(C85-$E$13*$E$7/$E$8)/($E$8/$E$7)) -> 0 | K85: =IF(F85-$M$89=0,0,(YTotExp-(YTotRet+YTotExp-$L$11-$L$12))/(F85-$M$89)*100) -> 0
C86: =+C85+C75-C74 -> 0.94 | D86: =+IF($C$84=0,0,$L$17-$L$11-$L$12+($L$11+$L$12)*C86/$C$84) -> 0 | F86: =IF($C$84=0,0,$M$88*C86/$C$84+$M$89) -> 0 | H86: =IF($D$84=0,0,(YTotExp-(YTotRet+YTotExp-$L$11-$L$12))/(YPrice/100)/(C86-$E$13*$E$7/$E$8)/($E$8/$E$7)) -> 0 | K86: =IF(F86-$M$89=0,0,(YTotExp-(YTotRet+YTotExp-$L$11-$L$12))/(F86-$M$89)*100) -> 0
D88: ="Your Male "&F8&" Price" -> Your Male Calf Price | K88: =+J11 -> 0 | M88: =(E11*G11+E12*G12)*100 -> 0
D89: ="Your Female "&F8&" Price" -> Your Female Calf Price | K89: =+J12 -> 0 | M89: =(E13*G13+E14*G14)*100 -> 0
D90: ="Your Weighted Average "&F8&" Price ($/cwt)" -> Your Weighted Average Calf Price ($/cwt) | K90: =+IF((E11*G11+E12*G12)=0,0,(L11+L12)/(E11*G11+E12*G12)) -> 0
A92: Developed by Vanessa Olson, Extension Forage Specialist; and, Jason Banta, Extension Beef Cattle Specialist, Texas A&M AgriLife Extension Service. For more information, contact: Vanessa Olson or Jason Banta at 903-834-6191.
A94: Information presented is prepared solely as a general guide and not intended to recognize or predict the costs and returns from any one operation. Brand names are mentioned only as examples and imply no endorsement.

Sheet Stockers
A1: Projections for Planning Purposes Only -- Not to be Used without Updating
A2: 2024 Estimated Costs and Returns per Animal
A3: Stocker Calf Budget
A4: Enter your name for this budget in the cell above.
A5: Enter Your Values in the cells highlighed in MAROON. | M5: Stocker
E6: Your Head | N6: Your
B7: Number of Head | D7: 100 | G7: Your | M7: Enterprise | N7: Enterprise
E8: Your | F8: Pay Weight | G8: Weight | J8: Your | L8: Your | M8: Total | N8: Total
A9: REVENUE | D9: Head | E9: Head | F9: or Amount | G9: or Amount | H9: Units | I9: $/Unit | J9: $/Unit | K9: Total | L9: Total | M9: ="(" & D7 & " Head)" -> (100 Head) | N9: ="(" & E7 & " Head)" -> ( Head)
B11: Stocker | D11: 0.98 | F11: 7.57 | H11: CWT | I11: 2.82 | K11: 20.920452 | L11: =+J11*G11*E11 -> 0 | M11: 2092.0452 | N11: =+L11*E$7 -> 0
D12: 0.98 | F12: 0 | I12: 0 | K12: 0 | L12: 0 | M12: 0 | N12: 0
D13: 0.98 | F13: 0 | I13: 0 | K13: 0 | L13: 0 | M13: 0 | N13: 0
A14: Total Revenue | K14: 20.920452 | L14: =+L11 -> 0 | M14: 2092.0452 | N14: 0
M15: Enterprise | N15: Enterprise
A16: VARIABLE COSTS | F16: Quantity | G16: Quantity | H16: Units | I16: $/Unit | J16: $/Unit | K16: Total | L16: Total | M16: Total | N16: Total
A17: Production Costs
B18: Stocker Purchase | F18: 4 | H18: CWT | I18: 3.15 | K18: 12.6 | L18: =+J18*G18 -> 0 | M18: 1260 | N18: =+L18*E$7 -> 0
B19: Stocker Delivery | F19: 1 | H19: Head | I19: 0 | K19: 0 | L19: =+J19*G19 -> 0 | M19: 0 | N19: =+L19*E$7 -> 0
B20: Grazing
C21: Acre Lease | F21: 0.5 | H21: Acre | I21: 20 | K21: 10 | L21: 0 | M21: 1000 | N21: =+L21*E$7 -> 0
C22: Grazing by Month | F22: 0 | H22: Month | I22: 0 | K22: 0 | L22: 0 | M22: 0 | N22: 0
C23: Gain Contract | F23: 0 | H23: Pounds | I23: 0 | K23: 0 | L23: 0 | M23: 0 | N23: 0
C24: On Weight Per Month | F24: 0 | H24: Month | I24: 0 | K24: 0 | L24: =+G24*J24*G18 -> 0 | M24: 0 | N24: 0
B25: Health
C26: Health and Vet - Stocker | F26: 1 | H26: Head | I26: 20 | K26: 20 | L26: =+J26*G26 -> 0 | M26: 2000 | N26: =+L26*E$7 -> 0
F27: 0 | I27: 0 | K27: 0 | L27: 0 | M27: 0 | N27: 0
F28: 0 | I28: 0 | K28: 0 | L28: 0 | M28: 0 | N28: 0
F29: 0 | I29: 0 | K29: 0 | L29: 0 | M29: 0 | N29: 0
B30: Feed
C31: Hay | F31: 0.5 | H31: Ton | I31: 200 | K31: 100 | L31: 0 | M31: 10000 | N31: 0
C32: Mineral - Stocker | F32: 1 | H32: Head | I32: 15 | K32: 15 | L32: 0 | M32: 1500 | N32: 0
F33: 0 | I33: 0 | K33: 0 | L33: 0 | M33: 0 | N33: 0
F34: 0 | I34: 0 | K34: 0 | L34: 0 | M34: 0 | N34: 0
F35: 0 | I35: 0 | K35: 0 | L35: 0 | M35: 0 | N35: 0
B36: Miscellaneous
C37: Rye-Ryegrass Pasture Costs | F37: 0.5 | H37: Acre | I37: 116.0344635 | K37: 58.01723177 | L37: =+J37*G37 -> 0 | M37: 5801.723177 | N37: =+L37*E$7 -> 0
C38: Miscellaneous - Stocker | F38: 1 | H38: Head | I38: 10 | K38: 10 | L38: 0 | M38: 1000 | N38: 0
F39: 1 | I39: 0 | K39: 0 | L39: 0 | M39: 0 | N39: 0
F40: 1 | I40: 0 | K40: 0 | L40: 0 | M40: 0 | N40: 0
B41: Fuel | F41: 1 | H41: Head | I41: 6.508 | K41: 6.508 | L41: 0 | M41: 650.8 | N41: 0
B42: Lube (As a % of fuel) | F42: 0.1 | H42: Percent | I42: 6.508 | K42: 0.6508 | L42: 0 | M42: 65.08 | N42: 0
B43: Utilities | F43: 1 | H43: Head | I43: 0 | K43: 0 | L43: 0 | M43: 0 | N43: 0
B44: Repairs | F44: 1 | H44: Head | I44: 0.4118 | K44: 0.4118 | L44: 0 | M44: 41.18 | N44: 0
B45: Marketing | F45: 0.98 | H45: Head | I45: 30 | K45: 29.4 | L45: 0 | M45: 2940 | N45: 0
B46: Labor | F46: 1 | H46: Head | I46: 50.35296 | K46: 50.35296 | L46: 0 | M46: 5035.296 | N46: 0
K47: 0 | L47: =+J47*G47 -> 0 | M47: 0 | N47: =+L47*E$7 -> 0
K48: 0 | L48: =+J48*G48 -> 0 | M48: 0 | N48: =+L48*E$7 -> 0
B49: Interest on Credit Line | I49: 0.08 | K49: 15.84454557 | L49: =+SUM(L18:L46)*J49/2 -> 0 | M49: 1584.454557 | N49: 0
A50: Total Variable Costs | K50: 328.7853373 | L50: =+SUM(L18:L49) -> 0 | M50: 32878.53373 | N50: =+SUM(N18:N49) -> 0
A52: Planned Returns Above Variable Costs: | K52: -307.8648853 | L52: =+L14-L50 -> 0 | M52: -30786.48853 | N52: =+N14-N50 -> 0
B54: Breakeven Price to Cover Variable Costs | I54: 44.31905445 | J54: =+IF(G11=0,"n/a",(L50-SUM(L12:L13))/(G11*E11)) -> n/a | K54: CWT
M55: Enterprise | N55: Enterprise
A56: FIXED COSTS | F56: Quantity | G56: Quantity | H56: Units | I56: $/Unit | J56: $/Unit | K56: Total | L56: Total | M56: Total | N56: Total
B58: Depreciation | F58: 1 | H58: Head | I58: 3.490666667 | K58: 3.490666667 | L58: =+J58*G58 -> 0 | M58: 349.0666667 | N58: =+L58*E$7 -> 0
B59: Equipment Investment | F59: 8.665 | H59: dollars | I59: 0.08 | K59: 0.6932 | L59: 0 | M59: 69.32 | N59: 0
B60: Salaried Labor | F60: 1 | H60: Head | I60: 0 | K60: 0 | L60: 0 | M60: 0 | N60: 0
B61: Management Fee, Owner/Operator Labor | F61: 1 | H61: Head | I61: 0 | K61: 0 | L61: 0 | M61: 0 | N61: 0
B62: Insurance | F62: 1 | H62: Head | I62: 0 | K62: 0 | L62: 0 | M62: 0 | N62: 0
K63: 0 | L63: 0 | M63: 0 | N63: 0
K64: 0 | L64: 0 | M64: 0 | N64: 0
A65: Total Fixed Costs | K65: 4.183866667 | L65: =+SUM(L58:L62) -> 0 | M65: 418.3866667 | N65: =+SUM(N58:N62) -> 0
A67: Total Costs | K67: 332.969204 | L67: =+L50+L65 -> 0 | M67: 33296.9204 | N67: =+N50+N65 -> 0
A69: Planned Returns to Management, Risk, and Profit: | K69: -312.048752 | L69: =+L52-L65 -> 0 | M69: -31204.8752 | N69: =+N52-N65 -> 0
A71: Breakeven Price to Cover Total Costs | I71: 44.88302429 | J71: =+IF(G11=0,"n/a",(L67-SUM(L12:L13))/(G11*E11)) -> n/a | K71: CWT
C73: Example Breakeven Sensitivity Analysis
F74: Purchase Weight (Lbs/Hd): 400 | H74: Sales Price/Cwt of $Total
F75: Sales Price/Cwt 2.82 | H75: Purchase Price/Cwt 3.15
C76: ADG (Lbs/day) | D76: Net Pay Weight with Shrink | F76: Breakeven Purchase Price ($/CWT) | H76: Breakeven Sales Price ($/CWT)
C77: 1.621470356 | D77: 810.232 | F77: -74.49440811 | H77: 41.93422302
C78: 1.486347826 | D78: 776.046 | F78: -74.73059919 | H78: 43.78148897
C79: 1.351225296 | D79: 757 | F79: -74.862188 | H79: 44.88302429
C80: 1.216102767 | D80: 707.674 | F80: -75.20298134 | H80: 48.01144226
C81: 1.080980237 | D81: 673.488 | F81: -75.43917241 | H81: 50.44848518
C82: Your Average Daily Gain | E82: 0 | F82: Pounds per Day
C83: =+"Your Animal"&IF(M5="Stocker"," Grazing"," Feeding")&" Days" -> Your Animal Grazing Days | E83: 0 | F83: Days
C84: Your Sale Shrink | E84: 0
C86: Your Breakeven Sensitivity Analysis
F87: =+"Purchase Weight (Lbs/Hd): "&G18*100 -> Purchase Weight (Lbs/Hd): 0 | H87: Sales Price/Cwt of $Total
F88: ="Sales Price/Cwt "&IF(J11="",".00",TEXT(J11,"#.00")) -> Sales Price/Cwt .00 | H88: ="Purchase Price/Cwt "&IF(J18="",".00",TEXT(J18,"#.00")) -> Purchase Price/Cwt .00
C89: ADG (Lbs/day) | D89: Net Pay Weight with Shrink | F89: Breakeven Purchase Price ($/CWT) | H89: Breakeven Sales Price ($/CWT)
C90: =+C92*1.2 -> 0 | D90: =+C90*$E$83+$G$18*100*(1-$E$84) -> 0 | F90: =IF($G$18=0,0,(((D90*$J$11/100*$E$11)-($L$67-SUM($J$12:$J$13)-$L$18))/(100*$G$18))*100) -> 0 | H90: =IF($E$11=0,0,($L$67-SUM($J$12:$J$13))/(D90*$E$11/100)) -> 0
C91: =+C92*1.1 -> 0 | D91: =+C91*$E$83+$G$18*100*(1-$E$84) -> 0 | F91: =IF($G$18=0,0,(((D91*$J$11/100*$E$11)-($L$67-SUM($J$12:$J$13)-$L$18))/(100*$G$18))*100) -> 0 | H91: =IF($E$11=0,0,($L$67-SUM($J$12:$J$13))/(D91*$E$11/100)) -> 0
C92: =+E82 -> 0 | D92: =+C92*$E$83+$G$18*100*(1-$E$84) -> 0 | F92: =IF($G$18=0,0,(((D92*$J$11/100*$E$11)-($L$67-SUM($J$12:$J$13)-$L$18))/(100*$G$18))*100) -> 0 | H92: =IF($E$11=0,0,($L$67-SUM($J$12:$J$13))/(D92*$E$11/100)) -> 0
C93: =+C92*0.9 -> 0 | D93: =+C93*$E$83+$G$18*100*(1-$E$84) -> 0 | F93: =IF($G$18=0,0,(((D93*$J$11/100*$E$11)-($L$67-SUM($J$12:$J$13)-$L$18))/(100*$G$18))*100) -> 0 | H93: =IF($E$11=0,0,($L$67-SUM($J$12:$J$13))/(D93*$E$11/100)) -> 0
C94: =+C92*0.8 -> 0 | D94: =+C94*$E$83+$G$18*100*(1-$E$84) -> 0 | F94: =IF($G$18=0,0,(((D94*$J$11/100*$E$11)-($L$67-SUM($J$12:$J$13)-$L$18))/(100*$G$18))*100) -> 0 | H94: =IF($E$11=0,0,($L$67-SUM($J$12:$J$13))/(D94*$E$11/100)) -> 0
A96: Developed by Vanessa Olson, Extension Forage Specialist; and, Jason Banta, Extension Beef Cattle Specialist, Texas A&M AgriLife Extension Service. For more information, contact: Vanessa Olson or Jason Banta at 903-834-6191.
A98: Information presented is prepared solely as a general guide and not intended to recognize or predict the costs and returns from any one operation. Brand names are mentioned only as examples and imply no endorsement.

Sheet Livestock Budget
A1: Estimated Costs and Returns per Animal or Breeding Female
A3: Livestock Budget
A5: Number of Head of Livestock | D5: 0
A7: Enter Your Values in the cells highlighed in MAROON. | H7: Enterprise
A8: REVENUE | C8: Head | D8: Quantity | E8: Units | F8: $/Unit | G8: Total | H8: Total
B9: Males Sold | C9: 0 | D9: 0 | E9: CWT | F9: 0 | G9: =IF($D$5=0,0,C9/$D$5*D9*F9) -> 0 | H9: =+G9*$D$5 -> 0
B10: Females Sold | C10: 0 | D10: 0 | E10: CWT | F10: 0 | G10: =IF($D$5=0,0,C10/$D$5*D10*F10) -> 0 | H10: =+G10*$D$5 -> 0
B11: Cull Breeding Females | C11: 0 | D11: 0 | E11: CWT | F11: 0 | G11: 0 | H11: 0
B12: Cull Breeding Males | C12: 0 | D12: 0 | E12: CWT | F12: 0 | G12: 0 | H12: 0
B13: Stocker or Feed Animal | C13: 0 | D13: 0 | E13: CWT | F13: 0 | G13: 0 | H13: 0
B14: Other Revenue | C14: 0 | D14: 0 | E14: CWT | F14: 0 | G14: 0 | H14: 0
B15: Other Revenue | C15: 0 | D15: 0 | E15: CWT | F15: 0 | G15: 0 | H15: 0
B16: Other Revenue | C16: 0 | D16: 0 | E16: CWT | F16: 0 | G16: 0 | H16: 0
A18: Total Revenue | G18: =+SUM(G9:G17) -> 0 | H18: =+SUM(H9:H17) -> 0
H20: Enterprise
A21: VARIABLE COSTS | D21: Quantity | E21: Units | F21: $/Unit | G21: Total | H21: Total
A22: Production Costs
B23: Animal Purchase Price, if applicable | D23: 0 | E23: Cwt | F23: 0 | G23: =D23*F23 -> 0 | H23: =+G23*$D$5 -> 0
B24: Pasture | C24: =+SUM(G25:G28) -> 0
C25: Pasture 1 | D25: 0 | E25: Acre | F25: 0 | G25: =D25*F25 -> 0 | H25: =+G25*$D$5 -> 0
C26: Pasture 2 | D26: 0 | E26: Acre | F26: 0 | G26: 0 | H26: 0
C27: Pasture 3 | D27: 0 | E27: Acre | F27: 0 | G27: 0 | H27: 0
C28: Pasture 4 | D28: 0 | E28: Acre | F28: 0 | G28: 0 | H28: 0
B29: Feed | C29: =SUM(G30:G37) -> 0
C30: Hay | D30: 0 | E30: Bales | F30: 0 | G30: =D30*F30 -> 0 | H30: =+G30*$D$5 -> 0
C31: Supplement | D31: 0 | E31: Cwt,lb,etc | F31: 0 | G31: =D31*F31 -> 0 | H31: =+G31*$D$5 -> 0
C32: Salt Minerals | D32: 0 | E32: Cwt | F32: 0 | G32: 0 | H32: 0
C33: Other Feed | D33: 0 | E33: Cwt,lb,etc | F33: 0 | G33: 0 | H33: 0
C34: Other Feed | D34: 0 | E34: Cwt,lb,etc | F34: 0 | G34: 0 | H34: 0
C35: Other Feed | D35: 0 | E35: Cwt,lb,etc | F35: 0 | G35: 0 | H35: 0
C36: Other Feed | D36: 0 | E36: Cwt,lb,etc | F36: 0 | G36: 0 | H36: 0
C37: Other Feed | D37: 0 | E37: Cwt,lb,etc | F37: 0 | G37: 0 | H37: 0
B38: Health | C38: =SUM(G39:G48) -> 0
C39: Vet/Medicine 1 | D39: 0 | E39: Visit,dose,cc's, etc. | F39: 0 | G39: =D39*F39 -> 0 | H39: =+G39*$D$5 -> 0
C40: Vet/Medicine 2 | D40: 0 | E40: Visit,dose,cc's, etc. | F40: 0 | G40: 0 | H40: 0
C41: Vet/Medicine 3 | D41: 0 | E41: Visit,dose,cc's, etc. | F41: 0 | G41: 0 | H41: 0
C42: Vet/Medicine 4 | D42: 0 | E42: Visit,dose,cc's, etc. | F42: 0 | G42: 0 | H42: 0
C43: Vet/Medicine 5 | D43: 0 | E43: Visit,dose,cc's, etc. | F43: 0 | G43: 0 | H43: 0
C44: Vet/Medicine 6 | D44: 0 | E44: Visit,dose,cc's, etc. | F44: 0 | G44: 0 | H44: 0
C45: Vet/Medicine 7 | D45: 0 | E45: Visit,dose,cc's, etc. | F45: 0 | G45: 0 | H45: 0
C46: Vet/Medicine 8 | D46: 0 | E46: Visit,dose,cc's, etc. | F46: 0 | G46: 0 | H46: 0
C47: Vet/Medicine 9 | D47: 0 | E47: Visit,dose,cc's, etc. | F47: 0 | G47: 0 | H47: 0
C48: Vet/Medicine 10 | D48: 0 | E48: Visit,dose,cc's, etc. | F48: 0 | G48: 0 | H48: 0
B50: Fuel, Lube, Repair | D50: 1 | E50: Head | F50: 0 | G50: 0 | H50: 0
B52: Labor | D52: 0 | E52: Hours | F52: 0 | G52: 0 | H52: 0
B54: Other Variable Expense | D54: 0 | E54: Cwt,lb,etc | F54: 0 | G54: 0 | H54: 0
B55: Other Variable Expense | D55: 0 | E55: Cwt,lb,etc | F55: 0 | G55: 0 | H55: 0
B56: Other Variable Expense | D56: 0 | E56: Cwt,lb,etc | F56: 0 | G56: 0 | H56: 0
B57: Other Variable Expense | D57: 0 | E57: Cwt,lb,etc | F57: 0 | G57: 0 | H57: 0
B58: Other Variable Expense | D58: 0 | E58: Cwt,lb,etc | F58: 0 | G58: 0 | H58: 0
B59: Other Variable Expense | D59: 0 | E59: Cwt,lb,etc | F59: 0 | G59: 0 | H59: 0
B61: Operating Interest | F61: 0 | G61: =+SUM(G23:G59)/2*F61 -> 0 | H61: 0
A63: Total Variable Costs | G63: =+SUM(G23:G62) -> 0 | H63: =+SUM(H23:H62) -> 0
A65: Planned Returns Above Variable Costs | G65: =+G18-G63 -> 0 | H65: =+H18-H63 -> 0
B67: Breakeven Price to Cover Variable Costs | E67: =IF((H101/100+C13*D13)=0,0,(G63-SUM(G11:G12,G14:G16))/(H101/100+C13/D5*D13)) -> 0 | F67: =+E9 -> CWT
H69: Enterprise
A70: FIXED COSTS | D70: Quantity | E70: Units | F70: $/Unit | G70: Total | H70: Total
B71: Depreciation - Equipment | D71: 0 | E71: Head,$,etc | F71: 0 | G71: =D71*F71 -> 0 | H71: =+G71*$D$5 -> 0
B72: Depreciation - Livestock | D72: 0 | E72: Head,$,etc | F72: 0 | G72: =D72*F72 -> 0 | H72: 0
B73: Equipment Investment | D73: 0 | E73: Head,$,etc | F73: 0 | G73: 0 | H73: 0
B74: Insurance | D74: 0 | E74: Head,$,etc | F74: 0 | G74: 0 | H74: 0
B75: Management Fee | D75: 0 | E75: Head,$,etc | F75: 0 | G75: 0 | H75: 0
B76: Owner/Operator Labor | D76: 0 | E76: Head,$,etc | F76: 0 | G76: 0 | H76: 0
B77: Salaried Labor | D77: 0 | E77: Head,$,etc | F77: 0 | G77: 0 | H77: 0
B78: Other Fixed Expense | D78: 0 | E78: Head,$,etc | F78: 0 | G78: 0 | H78: 0
B79: Other Fixed Expense | D79: 0 | E79: Head,$,etc | F79: 0 | G79: 0 | H79: 0
B80: Other Fixed Expense | D80: 0 | E80: Head,$,etc | F80: 0 | G80: 0 | H80: 0
B81: Other Fixed Expense | D81: 0 | E81: Head,$,etc | F81: 0 | G81: 0 | H81: 0
B82: Other Fixed Expense | D82: 0 | E82: Head,$,etc | F82: 0 | G82: 0 | H82: 0
D84: Total Fixed Costs | G84: =+SUM(G71:G83) -> 0 | H84: =+SUM(H71:H83) -> 0
D86: Total Specified Costs | G86: =+G63+G84 -> 0 | H86: =+H63+H84 -> 0
D88: Returns Above Specifiied Costs | G88: =+G18-G86 -> 0 | H88: =+H18-H86 -> 0
B90: Breakeven Price to Cover Total Costs | E90: =IF((H101/100+C13*D13)=0,0,(G86-SUM(G11:G12,G14:G16))/(H101/100+C13/D5*D13)) -> 0 | F90: =+F67 -> CWT
B93: Sensitivity Analysis for Your Breeding Herd or Flock Values
B94: Your Weaning Percent | C94: Your Gross Sales per Head | D94: Pounds Produced per Head | E94: ="Your Breakeven Pay Weight to Cover Total Cost" -> Your Breakeven Pay Weight to Cover Total Cost | G94: Your Average Breakeven Price to Cover Total Cost
B95: =+B96-0.03 -> -0.06 | C95: =+IF($B$97=0,0,YTotRet-$G$9-$G$10+($G$9+$G$10)*B95/$B$97) -> 0 | D95: =IF($B$97=0,0,$H$101*B95/$B$97+$H$102) -> 0 | E95: =IF($C$97=0,0,(YTotExp-($G$18-$G$9-$G$10))/(YPrice/100)/(B95-$C$11/$D$5)) -> 0 | G95: =IF(D95-$H$102=0,0,(YTotExp-($G$18-$G$9-$G$10))/(D95-$H$102)*100) -> 0
B96: =+B97-0.03 -> -0.03 | C96: =+IF($B$97=0,0,YTotRet-$G$9-$G$10+($G$9+$G$10)*B96/$B$97) -> 0 | D96: =IF($B$97=0,0,$H$101*B96/$B$97+$H$102) -> 0 | E96: =IF($C$97=0,0,(YTotExp-($G$18-$G$9-$G$10))/(YPrice/100)/(B96-$C$11/$D$5)) -> 0 | G96: =IF(D96-$H$102=0,0,(YTotExp-($G$18-$G$9-$G$10))/(D96-$H$102)*100) -> 0
B97: 0 | C97: =+G18 -> 0 | D97: =H101+H102 -> 0 | E97: =IF($C$97=0,0,(YTotExp-($G$18-$G$9-$G$10))/(YPrice/100)/(B97-$C$11/$D$5)) -> 0 | G97: =IF(D97-$H$102=0,0,(YTotExp-($G$18-$G$9-$G$10))/(D97-$H$102)*100) -> 0
B98: =+B97+0.03 -> 0.03 | C98: =+IF($B$97=0,0,YTotRet-$G$9-$G$10+($G$9+$G$10)*B98/$B$97) -> 0 | D98: =IF($B$97=0,0,$H$101*B98/$B$97+$H$102) -> 0 | E98: =IF($C$97=0,0,(YTotExp-($G$18-$G$9-$G$10))/(YPrice/100)/(B98-$C$11/$D$5)) -> 0 | G98: =IF(D98-$H$102=0,0,(YTotExp-($G$18-$G$9-$G$10))/(D98-$H$102)*100) -> 0
B99: =+B98+0.03 -> 0.06 | C99: =+IF($B$97=0,0,YTotRet-$G$9-$G$10+($G$9+$G$10)*B99/$B$97) -> 0 | D99: =IF($B$97=0,0,$H$101*B99/$B$97+$H$102) -> 0 | E99: =IF($C$97=0,0,(YTotExp-($G$18-$G$9-$G$10))/(YPrice/100)/(B99-$C$11/$D$5)) -> 0 | G99: =IF(D99-$H$102=0,0,(YTotExp-($G$18-$G$9-$G$10))/(D99-$H$102)*100) -> 0
C101: Your Male Price | F101: =+F9 -> 0 | H101: =IF(D5=0,0,(C9*D9+C10*D10)*100/D5) -> 0
C102: Your Female Price | F102: =+F10 -> 0 | H102: =IF(D5=0,0,(C11*D11+C12*D12)*100/D5) -> 0
C103: Your Weighted Average Price ($/cwt) | F103: =+IF((C9*D9+C10*D10)=0,F13,(G9+G10)/((C9*D9+C10*D10)/D5)) -> 0
C105: Your Stocker or Feeder Breakeven Sensitivity Analysis
C106: Your Average Daily Gain | E106: 0 | F106: Pounds per Day
C107: =+"Your Animal"&IF(M25="Stocker"," Grazing"," Feeding")&" Days" -> Your Animal Feeding Days | E107: 0 | F107: Days
C108: Your Sale Shrink | E108: 0
C109: Average Daily Gain (Pounds/day) | D109: Net Pay Weight with Shrink (Pounds) | F109: =+"Purchase Weight (Pounds/Head): "&D23*100 -> Purchase Weight (Pounds/Head): 0 | H109: Sales Price/Cwt of $Total
F110: ="Sales Price "&IF(F13="",".00",TEXT(F13,"#.00")) -> Sales Price .00 | H110: ="Purchase Price "&IF(F23="",".00",TEXT(F23,"#.00")) -> Purchase Price .00
F111: Breakeven Purchase Price ($/CWT) | H111: Breakeven Sales Price ($/CWT)
C112: =+C114*1.2 -> 0 | D112: =+(C112*$E$107+$D$23*100)*(1-$E$108) -> 0 | F112: =IF($D$23=0,0,(((D112*$F$13/100*($C$13/$D$5))-($G$86-SUM($G$14:$G$16)-$G$23))/(100*$D$23))*100) -> 0 | H112: =IF($C$13=0,0,($G$86-SUM($G$14:$G$16))/(D112*($C$13/$D$5)*100)) -> 0
C113: =+C114*1.1 -> 0 | D113: =+(C113*$E$107+$D$23*100)*(1-$E$108) -> 0 | F113: =IF($D$23=0,0,(((D113*$F$13/100*($C$13/$D$5))-($G$86-SUM($G$14:$G$16)-$G$23))/(100*$D$23))*100) -> 0 | H113: =IF($C$13=0,0,($G$86-SUM($G$14:$G$16))/(D113*($C$13/$D$5)*100)) -> 0
C114: =+E106 -> 0 | D114: =+(C114*$E$107+$D$23*100)*(1-$E$108) -> 0 | F114: =IF($D$23=0,0,(((D114*$F$13/100*($C$13/$D$5))-($G$86-SUM($G$14:$G$16)-$G$23))/(100*$D$23))*100) -> 0 | H114: =IF($C$13=0,0,($G$86-SUM($G$14:$G$16))/(D114*($C$13/$D$5)*100)) -> 0
C115: =+C114*0.9 -> 0 | D115: =+(C115*$E$107+$D$23*100)*(1-$E$108) -> 0 | F115: =IF($D$23=0,0,(((D115*$F$13/100*($C$13/$D$5))-($G$86-SUM($G$14:$G$16)-$G$23))/(100*$D$23))*100) -> 0 | H115: =IF($C$13=0,0,($G$86-SUM($G$14:$G$16))/(D115*($C$13/$D$5)*100)) -> 0
C116: =+C114*0.8 -> 0 | D116: =+(C116*$E$107+$D$23*100)*(1-$E$108) -> 0 | F116: =IF($D$23=0,0,(((D116*$F$13/100*($C$13/$D$5))-($G$86-SUM($G$14:$G$16)-$G$23))/(100*$D$23))*100) -> 0 | H116: =IF($C$13=0,0,($G$86-SUM($G$14:$G$16))/(D116*($C$13/$D$5)*100)) -> 0

Sheet Crop Budget
A1: Estimated Costs and Returns per Acre
A3: Crop Enterprise
A5: Number of Acres of Crop | D5: 0
A7: Enter Your Values in the cells highlighed in MAROON. | G7: Enterprise
A8: REVENUE | C8: Quantity | D8: Units | E8: $/Unit | F8: Total | G8: Total
B9: Primary Product | C9: 0 | D9: Cwt,lb,etc | E9: 0 | F9: =C9*E9 -> 0 | G9: =+F9*$D$5 -> 0
B10: Secondary Product | C10: 0 | D10: Cwt,lb,etc | E10: 0 | F10: =C10*E10 -> 0 | G10: =+F10*$D$5 -> 0
B11: Secondary Product | C11: 0 | D11: Cwt,lb,etc | E11: 0 | F11: 0 | G11: 0
B12: Secondary Product | C12: 0 | D12: Cwt,lb,etc | E12: 0 | F12: 0 | G12: 0
B13: Secondary Product | C13: 0 | D13: Cwt,lb,etc | E13: 0 | F13: 0 | G13: 0
B14: Secondary Product | C14: 0 | D14: Cwt,lb,etc | E14: 0 | F14: 0 | G14: 0
B15: Secondary Product | C15: 0 | D15: Cwt,lb,etc | E15: 0 | F15: 0 | G15: 0
B16: Secondary Product | C16: 0 | D16: Cwt,lb,etc | E16: 0 | F16: 0 | G16: 0
A18: Total Revenue | F18: =+SUM(F9:F16) -> 0 | G18: =+SUM(G9:G16) -> 0
G20: Enterprise
A21: VARIABLE COSTS | C21: Quantity | D21: Units | E21: $/Unit | F21: Total | G21: Total
A23: Custom Field and Harvest Operations
B24: Custom Field Operation 1 | C24: 0 | D24: Acre | E24: 0 | F24: =C24*E24 -> 0 | G24: =+F24*$D$5 -> 0
B25: Custom Field Operation 2 | C25: 0 | D25: Acre | E25: 0 | F25: 0 | G25: 0
B26: Custom Field Operation 3 | C26: 0 | D26: Acre | E26: 0 | F26: 0 | G26: 0
B27: Custom Field Operation 4 | C27: 0 | D27: Acre | E27: 0 | F27: 0 | G27: 0
B28: Custom Field Operation 5 | C28: 0 | D28: Acre | E28: 0 | F28: 0 | G28: 0
B29: Custom Field Operation 6 | C29: 0 | D29: Acre | E29: 0 | F29: 0 | G29: 0
A30: Machinery Expenses
B31: Diesel | C31: 0 | D31: Gallon | E31: 0 | F31: =C31*E31 -> 0 | G31: 0
B32: Gasoline | C32: 0 | D32: Gallon | E32: 0 | F32: 0 | G32: 0
B33: Lube | C33: 0 | D33: Acre | E33: 0 | F33: 0 | G33: 0
B34: Repairs | C34: 0 | D34: Acre | E34: 0 | F34: 0 | G34: 0
B35: Other Machinery Expense 1 | C35: 0 | D35: Acre | E35: 0 | F35: 0 | G35: 0
B36: Other Machinery Expense 2 | C36: 0 | D36: Acre | E36: 0 | F36: 0 | G36: 0
A37: Labor
B38: Labor 1 | C38: 0 | D38: Hour | E38: 0 | F38: =C38*E38 -> 0 | G38: 0
B39: Labor 2 | C39: 0 | D39: Hour | E39: 0 | F39: 0 | G39: 0
B40: Labor 3 | C40: 0 | D40: Hour | E40: 0 | F40: 0 | G40: 0
B41: Labor 4 | C41: 0 | D41: Hour | E41: 0 | F41: 0 | G41: 0
B42: Labor 5 | C42: 0 | D42: Hour | E42: 0 | F42: 0 | G42: 0
B43: Irrigation Labor | C43: 0 | D43: Hour | E43: 0 | F43: 0 | G43: 0
A44: Seed or Transplants
B45: Seed | C45: 0 | D45: Pound | E45: 0 | F45: =C45*E45 -> 0 | G45: 0
B46: Seed Treatment | C46: 0 | D46: Pound | E46: 0 | F46: 0 | G46: 0
B47: Seed Fee | C47: 0 | D47: Pound | E47: 0 | F47: 0 | G47: 0
B48: Transplants | C48: 0 | D48: Thousand | E48: 0 | F48: 0 | G48: 0
B49: Mulch | C49: 0 | D49: Foot | E49: 0 | F49: 0 | G49: 0
B50: Other Seed or Transplant | C50: 0 | D50: Pound | E50: 0 | F50: 0 | G50: 0
A51: Fertilizer and Lime
B52: Fertlizer 1 | C52: 0 | D52: Pound | E52: 0 | F52: =C52*E52 -> 0 | G52: 0
B53: Fertlizer 2 | C53: 0 | D53: Pound | E53: 0 | F53: 0 | G53: 0
B54: Fertlizer 3 | C54: 0 | D54: Pound | E54: 0 | F54: 0 | G54: 0
B55: Fertlizer 4 | C55: 0 | D55: Pound | E55: 0 | F55: 0 | G55: 0
B56: Fertlizer 5 | C56: 0 | D56: Pound | E56: 0 | F56: 0 | G56: 0
B57: Lime | C57: 0 | D57: Ton | E57: 0 | F57: 0 | G57: 0
B58: Other Soil Amendment 1 | C58: 0 | D58: Pound | E58: 0 | F58: 0 | G58: 0
B59: Other Soil Amendment 2 | C59: 0 | D59: Pound | E59: 0 | F59: 0 | G59: 0
A60: Herbicides
B61: Herbicide 1 | C61: 0 | D61: Lb,Oz,Acre | E61: 0 | F61: =C61*E61 -> 0 | G61: 0
B62: Herbicide 2 | C62: 0 | D62: Lb,Oz,Acre | E62: 0 | F62: 0 | G62: 0
B63: Herbicide 3 | C63: 0 | D63: Lb,Oz,Acre | E63: 0 | F63: 0 | G63: 0
B64: Herbicide 4 | C64: 0 | D64: Lb,Oz,Acre | E64: 0 | F64: 0 | G64: 0
B65: Herbicide 5 | C65: 0 | D65: Lb,Oz,Acre | E65: 0 | F65: 0 | G65: 0
B66: Herbicide 6 | C66: 0 | D66: Lb,Oz,Acre | E66: 0 | F66: 0 | G66: 0
A67: Insecticides
B68: Insecticide 1 | C68: 0 | D68: Lb,Oz,Acre | E68: 0 | F68: =C68*E68 -> 0 | G68: 0
B69: Insecticide 2 | C69: 0 | D69: Lb,Oz,Acre | E69: 0 | F69: 0 | G69: 0
B70: Insecticide 3 | C70: 0 | D70: Lb,Oz,Acre | E70: 0 | F70: 0 | G70: 0
B71: Insecticide 4 | C71: 0 | D71: Lb,Oz,Acre | E71: 0 | F71: 0 | G71: 0
B72: Insecticide 5 | C72: 0 | D72: Lb,Oz,Acre | E72: 0 | F72: 0 | G72: 0
B73: Insecticide 6 | C73: 0 | D73: Lb,Oz,Acre | E73: 0 | F73: 0 | G73: 0
A74: Fungicides
B75: Fungicide 1 | C75: 0 | D75: Lb,Oz,Acre | E75: 0 | F75: =C75*E75 -> 0 | G75: 0
B76: Fungicide 2 | C76: 0 | D76: Lb,Oz,Acre | E76: 0 | F76: 0 | G76: 0
B77: Fungicide 3 | C77: 0 | D77: Lb,Oz,Acre | E77: 0 | F77: 0 | G77: 0
B78: Fungicide 4 | C78: 0 | D78: Lb,Oz,Acre | E78: 0 | F78: 0 | G78: 0
B79: Fungicide 5 | C79: 0 | D79: Lb,Oz,Acre | E79: 0 | F79: 0 | G79: 0
B80: Fungicide 6 | C80: 0 | D80: Lb,Oz,Acre | E80: 0 | F80: 0 | G80: 0
A81: Growth Regulators
B82: Growth Regulator 1 | C82: 0 | D82: Lb,Oz,Acre | E82: 0 | F82: =C82*E82 -> 0 | G82: 0
B83: Growth Regulator 2 | C83: 0 | D83: Lb,Oz,Acre | E83: 0 | F83: 0 | G83: 0
B84: Growth Regulator 3 | C84: 0 | D84: Lb,Oz,Acre | E84: 0 | F84: 0 | G84: 0
B85: Growth Regulator 4 | C85: 0 | D85: Lb,Oz,Acre | E85: 0 | F85: 0 | G85: 0
B86: Growth Regulator 5 | C86: 0 | D86: Lb,Oz,Acre | E86: 0 | F86: 0 | G86: 0
B87: Growth Regulator 6 | C87: 0 | D87: Lb,Oz,Acre | E87: 0 | F87: 0 | G87: 0
A88: Other Chemicals
B89: Fumigant | C89: 0 | D89: Lb,Oz,Acre | E89: 0 | F89: =C89*E89 -> 0 | G89: 0
B90: Other Chemical 1 | C90: 0 | D90: Lb,Oz,Acre | E90: 0 | F90: 0 | G90: =+F90*$D$5 -> 0
B91: Other Chemical 2 | C91: 0 | D91: Lb,Oz,Acre | E91: 0 | F91: 0 | G91: =+F91*$D$5 -> 0
B92: Other Chemical 3 | C92: 0 | D92: Lb,Oz,Acre | E92: 0 | F92: 0 | G92: =+F92*$D$5 -> 0
B93: Other Chemical 4 | C93: 0 | D93: Lb,Oz,Acre | E93: 0 | F93: 0 | G93: =+F93*$D$5 -> 0
B94: Other Chemical 5 | C94: 0 | D94: Lb,Oz,Acre | E94: 0 | F94: 0 | G94: =+F94*$D$5 -> 0
A95: Irrigation
B96: Well Expense | C96: 0 | D96: Acre | E96: 0 | F96: =C96*E96 -> 0 | G96: =+F96*$D$5 -> 0
B97: Pump Fuel | C97: 0 | D97: Mcf,kWh,Gallon | E97: 0 | F97: 0 | G97: 0
B98: Pump Expense | C98: 0 | D98: Acre | E98: 0 | F98: 0 | G98: 0
B99: Irrigation Equipment Expense | C99: 0 | D99: Acre | E99: 0 | F99: 0 | G99: 0
B100: Repairs | C100: 0 | D100: Acre | E100: 0 | F100: 0 | G100: 0
B101: Drip Tape | C101: 0 | D101: Foot,Acre | E101: 0 | F101: 0 | G101: 0
B102: Water Cost | C102: 0 | D102: AcIn,Gallon | E102: 0 | F102: 0 | G102: 0
B103: Other Irrigation Expense 1 | C103: 0 | D103: Acre | E103: 0 | F103: 0 | G103: 0
B104: Other Irrigation Expense 2 | C104: 0 | D104: Acre | E104: 0 | F104: 0 | G104: 0
A105: Miscellaneous Expenses
B106: Crop Insurance | C106: 0 | D106: Acre | E106: 0 | F106: =C106*E106 -> 0 | G106: 0
B107: Other Variable Expense 1 | C107: 0 | D107: Enter Unit | E107: 0 | F107: 0 | G107: 0
B108: Other Variable Expense 2 | C108: 0 | D108: Enter Unit | E108: 0 | F108: 0 | G108: 0
B109: Other Variable Expense 3 | C109: 0 | D109: Enter Unit | E109: 0 | F109: 0 | G109: 0
B110: Other Variable Expense 4 | C110: 0 | D110: Enter Unit | E110: 0 | F110: 0 | G110: 0
B111: Other Variable Expense 5 | C111: 0 | D111: Enter Unit | E111: 0 | F111: 0 | G111: 0
B112: Other Variable Expense 6 | C112: 0 | D112: Enter Unit | E112: 0 | F112: 0 | G112: 0
B113: Other Variable Expense 7 | C113: 0 | D113: Enter Unit | E113: 0 | F113: 0 | G113: 0
B114: Other Variable Expense 8 | C114: 0 | D114: Enter Unit | E114: 0 | F114: 0 | G114: 0
B116: Operating Interest | E116: 0 | F116: =+SUM(F23:F115)/2*E116 -> 0 | G116: =+F116*$D$6 -> 0
A118: Total Variable Costs | F118: =+SUM(F23:F116) -> 0 | G118: =+SUM(G23:G116) -> 0
A120: Planned Returns Above Variable Costs | F120: =+F18-F118 -> 0 | G120: =+G18-G118 -> 0
B122: Breakeven Price to Cover Variable Costs | E122: =+IF(C9=0,0,F118-SUM(F10:F16)/C9) -> 0 | F122: =+D9 -> Cwt,lb,etc
G124: Enterprise
A125: FIXED COSTS | C125: Quantity | D125: Units | E125: $/Unit | F125: Total | G125: Total
B126: Land Rent or Expense | C126: 1 | D126: Acre | E126: 0 | F126: =C126*E126 -> 0 | G126: =+F126*$D$6 -> 0
B127: Depreciation - Equipment | C127: 1 | D127: Acre | E127: 0 | F127: =C127*E127 -> 0 | G127: 0
B128: Equipment Investment | C128: 0 | D128: $ | E128: 0 | F128: 0 | G128: 0
B129: Insurance | C129: 1 | D129: Acre | E129: 0 | F129: 0 | G129: 0
B130: Management Fee | C130: 1 | D130: Acre | E130: 0 | F130: 0 | G130: 0
B131: Owner/Operator Labor | C131: 0 | D131: Acre | E131: 0 | F131: 0 | G131: 0
B132: Salaried Labor | C132: 1 | D132: Acre,$,etc | E132: 0 | F132: 0 | G132: 0
B133: Other Fixed Expense | C133: 0 | D133: Acre,$,etc | E133: 0 | F133: 0 | G133: 0
B134: Other Fixed Expense | C134: 0 | D134: Acre,$,etc | E134: 0 | F134: 0 | G134: 0
B135: Other Fixed Expense | C135: 0 | D135: Acre,$,etc | E135: 0 | F135: 0 | G135: 0
B136: Other Fixed Expense | C136: 0 | D136: Acre,$,etc | E136: 0 | F136: 0 | G136: 0
B137: Other Fixed Expense | C137: 0 | D137: Acre,$,etc | E137: 0 | F137: 0 | G137: 0
D139: Total Fixed Costs | F139: =+SUM(F126:F137) -> 0 | G139: =+SUM(G126:G137) -> 0
D141: Total Specified Costs | F141: =+F118+F139 -> 0 | G141: =+G118+G139 -> 0
D143: Returns Above Specifiied Costs | F143: =+F18-F141 -> 0 | G143: =+G18-G141 -> 0
B145: Breakeven Price to Cover Total Costs | E145: =+IF(C9=0,0,F141-SUM(F10:F16)/C9) -> 0 | F145: =+D9 -> Cwt,lb,etc
B147: Breakeven Prices for Your Crop
E148: Price To Cover | G148: Price To Cover
B149: Yield | C149: Yield | E149: Variable | G149: Total
B150: Percent | C150: =+D9 -> Cwt,lb,etc | E150: Costs | G150: Costs
B151: 0.75 | C151: =+$C$153*B151 -> 0 | E151: =+IF(C151=0,0,($F$118-SUM($F$10:$F$16))/C151) -> 0 | G151: =+IF(C151=0,0,($F$141-SUM($F$10:$F$16))/C151) -> 0
B152: 0.9 | C152: =+$C$153*B152 -> 0 | E152: =+IF(C152=0,0,($F$118-SUM($F$10:$F$16))/C152) -> 0 | G152: =+IF(C152=0,0,($F$141-SUM($F$10:$F$16))/C152) -> 0
B153: 1 | C153: =+C9 -> 0 | E153: =+IF(C153=0,0,($F$118-SUM($F$10:$F$16))/C153) -> 0 | G153: =+IF(C153=0,0,($F$141-SUM($F$10:$F$16))/C153) -> 0
B154: 1.1 | C154: 0 | E154: =+IF(C154=0,0,($F$118-SUM($F$10:$F$16))/C154) -> 0 | G154: =+IF(C154=0,0,($F$141-SUM($F$10:$F$16))/C154) -> 0
B155: 1.25 | C155: 0 | E155: =+IF(C155=0,0,($F$118-SUM($F$10:$F$16))/C155) -> 0 | G155: =+IF(C155=0,0,($F$141-SUM($F$10:$F$16))/C155) -> 0

Sheet Comparative Returns - Cash Rent
A1: Comparative Returns - Cash Rent
B3: Returns Above Total Specified Expenses | E3: Total Direct Expenses | H3: Breakeven Yield to Cover Total Costs at Price Entered
B4: Total Costs | C4: Variable Costs | E4: Total Costs | F4: Variable Costs | H4: Price | I4: Units | J4: Total Costs | K4: Variable Costs
A5: FORAGE CROPS
A7: =+CoastalEstablish!A3 -> Coastal Bermudagrass Establishment | B7: =+CoastalEstablish!TotRet -> -499.7066732 | C7: =+CoastalEstablish!VarRet -> -475.0654851 | E7: =+CoastalEstablish!TotExp -> 499.7066732 | F7: =+CoastalEstablish!VarExp -> 475.0654851 | H7: =+CoastalEstablish!Price -> 0 | I7: =+CoastalEstablish!Unit ->  | J7: =+IF($H7=0,0,E7/$H7) -> 0 | K7: 0
A8: =+LargeRoundHay!A3 -> Coastal Bermudagrass Hay, Large Bales | B8: =+LargeRoundHay!TotRet -> 99.90240394 | C8: =+LargeRoundHay!VarRet -> 129.6738955 | E8: =+LargeRoundHay!TotExp -> 500.0975961 | F8: =+LargeRoundHay!VarExp -> 470.3261045 | H8: =+LargeRoundHay!Price -> 200 | I8: =+LargeRoundHay!Unit -> Ton | J8: 2.50048798 | K8: 2.351630523
A9: =+SmallSquareHay!A3 -> Coastal Bermudagrass Hay, Small Square Bales (60 lbs.) | B9: =+SmallSquareHay!TotRet -> 411.4738531 | C9: =+SmallSquareHay!VarRet -> 466.9369485 | E9: =+SmallSquareHay!TotExp -> 438.5261469 | F9: =+SmallSquareHay!VarExp -> 383.0630515 | H9: =+SmallSquareHay!Price -> 8.5 | I9: =+SmallSquareHay!Unit -> Bale | J9: 51.5913114 | K9: 45.06624135
A10: =+CoastalPasture!A3 -> Coastal Bermudagrass Pasture Grazing | B10: =+CoastalPasture!TotRet -> -196.6500544 | C10: =+CoastalPasture!VarRet -> -169.8020918 | E10: =+CoastalPasture!TotExp -> 196.6500544 | F10: =+CoastalPasture!VarExp -> 169.8020918 | H10: =+CoastalPasture!Price -> 0 | I10: =+CoastalPasture!Unit ->  | J10: 0 | K10: 0
A11: =+CoastalOverseed!A3 -> Coastal Bermudagrass Pasture, Overseeded Rye and Ryegrass | B11: =+CoastalOverseed!TotRet -> -354.0442704 | C11: =+CoastalOverseed!VarRet -> -316.147686 | E11: =+CoastalOverseed!TotExp -> 354.0442704 | F11: =+CoastalOverseed!VarExp -> 316.147686 | H11: =+CoastalOverseed!Price -> 0 | I11: =+CoastalOverseed!Unit ->  | J11: =+IF($H11=0,0,E11/$H11) -> 0 | K11: =+IF($H11=0,0,F11/$H11) -> 0
A13: LIVESTOCK
A15: =+CowCalf!A3 -> Cow-Calf Production | B15: =+CowCalf!TotRet -> 98.80944471 | C15: =+CowCalf!VarRet -> 720.9069289 | E15: =+CowCalf!TotExp -> 1165.203055 | F15: =+CowCalf!VarExp -> 543.1055711 | H15: =+CowCalf!Price -> 278.9961514 | I15: =+CowCalf!Unit -> CWT | J15: =+IF($H15=0,0,E15/$H15) -> 4.176412648 | K15: =+IF($H15=0,0,F15/$H15) -> 1.946641803

Sheet Comparative Returns-Share Rent
A1: Comparative Returns - Share Rent
A3: Variable Costs to the right of Total Costs | B3: Returns Above Total Specified Expenses | F3: Total Direct Expenses | J3: Breakeven Yield to Cover Total Costs at Price Entered | P3: Returns Above Variable Specified Expenses | T3: Variable Direct Expenses | X3: Breakeven Yield to Cover Variavle Costs at Price Entered
B4: Total | C4: Tenant | D4: Landlord | F4: Total | G4: Tenant | H4: Landlord | J4: Price | K4: Units | L4: Total | M4: Tenant | N4: Landlord | P4: Total | Q4: Tenant | R4: Landlord | T4: Total | U4: Tenant | V4: Landlord | X4: Price | Y4: Units | Z4: Total | AA4: Tenant | AB4: Landlord
A5: FORAGE CROPS
A7: =+CoastalEstablish!A3 -> Coastal Bermudagrass Establishment | B7: =+CoastalEstablish!TotRet -> -499.7066732 | C7: =+CoastalEstablish!TTotRet -> -499.7066732 | D7: =+CoastalEstablish!LTotRet -> 0 | F7: =+CoastalEstablish!TotExp -> 499.7066732 | G7: =+CoastalEstablish!TTotExp -> 499.7066732 | H7: =+CoastalEstablish!LTotExp -> 0 | J7: =+CoastalEstablish!Price -> 0 | K7: =+CoastalEstablish!Unit ->  | L7: =+IF($J7=0,0,F7/$J7) -> 0 | M7: 0 | N7: 0 | P7: =+CoastalEstablish!VarRet -> -475.0654851 | Q7: =+CoastalEstablish!TVarRet -> -475.0654851 | R7: =+CoastalEstablish!LVarRet -> 0 | T7: =+CoastalEstablish!VarExp -> 475.0654851 | U7: =+CoastalEstablish!TVarExp -> 475.0654851 | V7: =+CoastalEstablish!LVarExp -> 0 | X7: =+CoastalEstablish!Price -> 0 | Y7: =+CoastalEstablish!Unit ->  | Z7: =+IF($J7=0,0,T7/$J7) -> 0 | AA7: 0 | AB7: 0
A8: =+LargeRoundHay!A3 -> Coastal Bermudagrass Hay, Large Bales | B8: =+LargeRoundHay!TotRet -> 99.90240394 | C8: =+LargeRoundHay!TTotRet -> 99.90240394 | D8: =+LargeRoundHay!LTotRet -> 0 | F8: =+LargeRoundHay!TotExp -> 500.0975961 | G8: =+LargeRoundHay!TTotExp -> 500.0975961 | H8: =+LargeRoundHay!LTotExp -> 0 | J8: =+LargeRoundHay!Price -> 200 | K8: =+LargeRoundHay!Unit -> Ton | L8: 2.50048798 | M8: 2.50048798 | N8: 0 | P8: =+LargeRoundHay!VarRet -> 129.6738955 | Q8: =+LargeRoundHay!TVarRet -> 129.6738955 | R8: =+LargeRoundHay!LVarRet -> 0 | T8: =+LargeRoundHay!VarExp -> 470.3261045 | U8: =+LargeRoundHay!TVarExp -> 470.3261045 | V8: =+LargeRoundHay!LVarExp -> 0 | X8: =+LargeRoundHay!Price -> 200 | Y8: =+LargeRoundHay!Unit -> Ton | Z8: 2.351630523 | AA8: 2.351630523 | AB8: 0
A9: =+SmallSquareHay!A3 -> Coastal Bermudagrass Hay, Small Square Bales (60 lbs.) | B9: =+SmallSquareHay!TotRet -> 411.4738531 | C9: =+SmallSquareHay!TTotRet -> 411.4738531 | D9: =+SmallSquareHay!LTotRet -> 0 | F9: =+SmallSquareHay!TotExp -> 438.5261469 | G9: =+SmallSquareHay!TTotExp -> 438.5261469 | H9: =+SmallSquareHay!LTotExp -> 0 | J9: =+SmallSquareHay!Price -> 8.5 | K9: =+SmallSquareHay!Unit -> Bale | L9: =+IF($J9=0,0,F9/$J9) -> 51.5913114 | M9: 51.5913114 | N9: 0 | P9: =+SmallSquareHay!VarRet -> 466.9369485 | Q9: =+SmallSquareHay!TVarRet -> 466.9369485 | R9: =+SmallSquareHay!LVarRet -> 0 | T9: =+SmallSquareHay!VarExp -> 383.0630515 | U9: =+SmallSquareHay!TVarExp -> 383.0630515 | V9: =+SmallSquareHay!LVarExp -> 0 | X9: =+SmallSquareHay!Price -> 8.5 | Y9: =+SmallSquareHay!Unit -> Bale | Z9: =+IF($J9=0,0,T9/$J9) -> 45.06624135 | AA9: 45.06624135 | AB9: 0
A10: =+CoastalPasture!A3 -> Coastal Bermudagrass Pasture Grazing | B10: =+CoastalPasture!TotRet -> -196.6500544 | C10: =+CoastalPasture!TTotRet -> -196.6500544 | D10: =+CoastalPasture!LTotRet -> 0 | F10: =+CoastalPasture!TotExp -> 196.6500544 | G10: =+CoastalPasture!TTotExp -> 196.6500544 | H10: =+CoastalPasture!LTotExp -> 0 | J10: =+CoastalPasture!Price -> 0 | K10: =+CoastalPasture!Unit ->  | L10: 0 | M10: 0 | N10: 0 | P10: =+CoastalPasture!VarRet -> -169.8020918 | Q10: =+CoastalPasture!TVarRet -> -169.8020918 | R10: =+CoastalPasture!LVarRet -> 0 | T10: =+CoastalPasture!VarExp -> 169.8020918 | U10: =+CoastalPasture!TVarExp -> 169.8020918 | V10: =+CoastalPasture!LVarExp -> 0 | X10: =+CoastalPasture!Price -> 0 | Y10: =+CoastalPasture!Unit ->  | Z10: 0 | AA10: 0 | AB10: 0
A11: =+CoastalOverseed!A3 -> Coastal Bermudagrass Pasture, Overseeded Rye and Ryegrass | B11: =+CoastalOverseed!TotRet -> -354.0442704 | C11: =+CoastalOverseed!TTotRet -> -354.0442704 | D11: =+CoastalOverseed!LTotRet -> 0 | F11: =+CoastalOverseed!TotExp -> 354.0442704 | G11: =+CoastalOverseed!TTotExp -> 354.0442704 | H11: =+CoastalOverseed!LTotExp -> 0 | J11: =+CoastalOverseed!Price -> 0 | K11: =+CoastalOverseed!Unit ->  | L11: =+IF($J11=0,0,F11/$J11) -> 0 | M11: =+IF($J11=0,0,G11/$J11) -> 0 | N11: =+IF($J11=0,0,H11/$J11) -> 0 | P11: =+CoastalOverseed!VarRet -> -316.147686 | Q11: =+CoastalOverseed!TVarRet -> -316.147686 | R11: =+CoastalOverseed!LVarRet -> 0 | T11: =+CoastalOverseed!VarExp -> 316.147686 | U11: =+CoastalOverseed!TVarExp -> 316.147686 | V11: =+CoastalOverseed!LVarExp -> 0 | X11: =+CoastalOverseed!Price -> 0 | Y11: =+CoastalOverseed!Unit ->  | Z11: =+IF($J11=0,0,T11/$J11) -> 0 | AA11: =+IF($J11=0,0,U11/$J11) -> 0 | AB11: =+IF($J11=0,0,V11/$J11) -> 0
A13: LIVESTOCK
A15: =+CowCalf!A3 -> Cow-Calf Production | B15: =+CowCalf!TotRet -> 98.80944471 | F15: =+CowCalf!TotExp -> 1165.203055 | J15: =+CowCalf!Price -> 278.9961514 | K15: =+CowCalf!Unit -> CWT | L15: =+IF($J15=0,0,F15/$J15) -> 4.176412648 | P15: =+CowCalf!VarRet -> 720.9069289 | T15: =+CowCalf!VarExp -> 543.1055711 | X15: =+CowCalf!Price -> 278.9961514 | Y15: =+CowCalf!Unit -> CWT | Z15: =+IF($J15=0,0,T15/$J15) -> 1.946641803

Sheet Your Returns - Cash Rent
A1: Your Returns - Cash Rent
B3: Quantity | C3: Returns Above Total Specified Expenses | F3: Total Direct Expenses | I3: Breakeven Yield to Cover Total Costs at Price Entered
B4: Acres, AUs, or Head | C4: Total Costs | D4: Variable Costs | F4: Total Costs | G4: Variable Costs | I4: Price | J4: Units | K4: Total Costs | L4: Variable Costs
A5: FORAGE CROPS
A7: =+CoastalEstablish!A3 -> Coastal Bermudagrass Establishment | B7: =+CoastalEstablish!E7 -> 0 | C7: =+CoastalEstablish!YTotRet -> 0 | D7: =+CoastalEstablish!YVarRet -> 0 | F7: =+CoastalEstablish!YTotExp -> 0 | G7: =+CoastalEstablish!YVarExp -> 0 | I7: =+CoastalEstablish!YPrice -> 0 | J7: =+CoastalEstablish!Unit ->  | K7: =+IF($I7=0,0,F7/$I7) -> 0 | L7: 0
A8: =+LargeRoundHay!A3 -> Coastal Bermudagrass Hay, Large Bales | B8: =+LargeRoundHay!E7 -> 0 | C8: =+LargeRoundHay!YTotRet -> 0 | D8: =+LargeRoundHay!YVarRet -> 0 | F8: =+LargeRoundHay!YTotExp -> 0 | G8: =+LargeRoundHay!YVarExp -> 0 | I8: =+LargeRoundHay!YPrice -> 0 | J8: =+LargeRoundHay!Unit -> Ton | K8: 0 | L8: 0
A9: =+SmallSquareHay!A3 -> Coastal Bermudagrass Hay, Small Square Bales (60 lbs.) | B9: =+SmallSquareHay!E7 -> 0 | C9: =+SmallSquareHay!YTotRet -> 0 | D9: =+SmallSquareHay!YVarRet -> 0 | F9: =+SmallSquareHay!YTotExp -> 0 | G9: =+SmallSquareHay!YVarExp -> 0 | I9: =+SmallSquareHay!YPrice -> 0 | J9: =+SmallSquareHay!Unit -> Bale | K9: 0 | L9: 0
A10: =+CoastalPasture!A3 -> Coastal Bermudagrass Pasture Grazing | B10: =+CoastalPasture!E7 -> 0 | C10: =+CoastalPasture!YTotRet -> 0 | D10: =+CoastalPasture!YVarRet -> 0 | F10: =+CoastalPasture!YTotExp -> 0 | G10: =+CoastalPasture!YVarExp -> 0 | I10: =+CoastalPasture!YPrice -> 0 | J10: =+CoastalPasture!Unit ->  | K10: 0 | L10: 0
A11: =+CoastalOverseed!A3 -> Coastal Bermudagrass Pasture, Overseeded Rye and Ryegrass | B11: =+CoastalOverseed!E7 -> 0 | C11: =+CoastalOverseed!YTotRet -> 0 | D11: =+CoastalOverseed!YVarRet -> 0 | F11: =+CoastalOverseed!YTotExp -> 0 | G11: =+CoastalOverseed!YVarExp -> 0 | I11: =+CoastalOverseed!YPrice -> 0 | J11: =+CoastalOverseed!Unit ->  | K11: =+IF($I11=0,0,F11/$I11) -> 0 | L11: =+IF($I11=0,0,G11/$I11) -> 0
A13: LIVESTOCK
A15: =+CowCalf!A3 -> Cow-Calf Production | B15: =+CowCalf!E7 -> 0 | C15: =+CowCalf!YTotRet -> 0 | D15: =+CowCalf!YVarRet -> 0 | F15: =+CowCalf!YTotExp -> 0 | G15: =+CowCalf!YVarExp -> 0 | I15: =+CowCalf!YPrice -> 0 | J15: =+CowCalf!Unit -> CWT | K15: =+IF($I15=0,0,F15/$I15) -> 0 | L15: =+IF($I15=0,0,G15/$I15) -> 0
A17: OTHER BUDGETS
A19: =+'Livestock Budget'!A3 -> Livestock Budget | B19: =+'Livestock Budget'!D5 -> 0 | C19: =+'Livestock Budget'!YTotRet -> 0 | D19: =+'Livestock Budget'!YVarRet -> 0 | F19: =+'Livestock Budget'!YTotExp -> 0 | G19: =+'Livestock Budget'!YVarExp -> 0 | I19: =+'Livestock Budget'!YPrice -> 0 | J19: =+'Livestock Budget'!Unit -> CWT | K19: =+IF($I19=0,0,F19/$I19) -> 0 | L19: =+IF($I19=0,0,G19/$I19) -> 0
A20: =+'Crop Budget'!A3 -> Crop Enterprise | B20: =+'Crop Budget'!D5 -> 0 | C20: =+'Crop Budget'!YTotRet -> 0 | D20: =+'Crop Budget'!YVarRet -> 0 | F20: =+'Crop Budget'!YTotExp -> 0 | G20: =+'Crop Budget'!YVarExp -> 0 | I20: =+'Crop Budget'!YPrice -> 0 | J20: =+'Crop Budget'!Unit -> Cwt,lb,etc | K20: =+IF($I20=0,0,F20/$I20) -> 0 | L20: =+IF($I20=0,0,G20/$I20) -> 0

Sheet Your Returns-Share Rent
A1: Your Returns - Share Rent
A3: Variable Costs to the right of Total Costs | B3: Quantity | C3: Returns Above Total Specified Expenses | G3: Total Direct Expenses | K3: Breakeven Yield to Cover Total Costs at Price Entered | Q3: Returns Above Variable Specified Expenses | U3: Variable Direct Expenses | Y3: Breakeven Yield to Cover Variavle Costs at Price Entered
B4: Acres, AUs, or Head | C4: Total | D4: Tenant | E4: Landlord | G4: Total | H4: Tenant | I4: Landlord | K4: Price | L4: Units | M4: Total | N4: Tenant | O4: Landlord | Q4: Total | R4: Tenant | S4: Landlord | U4: Total | V4: Tenant | W4: Landlord | Y4: Price | Z4: Units | AA4: Total | AB4: Tenant | AC4: Landlord
A5: FORAGE CROPS
A7: =+CoastalEstablish!A3 -> Coastal Bermudagrass Establishment | B7: =+CoastalEstablish!E7 -> 0 | C7: =+CoastalEstablish!YTotRet -> 0 | D7: =+CoastalEstablish!YTTotRet -> 0 | E7: =+CoastalEstablish!YLTotRet -> 0 | G7: =+CoastalEstablish!YTotExp -> 0 | H7: =+CoastalEstablish!YTTotExp -> 0 | I7: =+CoastalEstablish!YLTotExp -> 0 | K7: =+CoastalEstablish!YPrice -> 0 | L7: =+CoastalEstablish!Unit ->  | M7: =+IF($K7=0,0,G7/$K7) -> 0 | N7: 0 | O7: 0 | Q7: =+CoastalEstablish!YVarRet -> 0 | R7: =+CoastalEstablish!YTVarRet -> 0 | S7: =+CoastalEstablish!YLVarRet -> 0 | U7: =+CoastalEstablish!YVarExp -> 0 | V7: =+CoastalEstablish!YTVarExp -> 0 | W7: =+CoastalEstablish!YLVarExp -> 0 | Y7: =+CoastalEstablish!YPrice -> 0 | Z7: =+CoastalEstablish!Unit ->  | AA7: =+IF($K7=0,0,U7/$K7) -> 0 | AB7: 0 | AC7: 0
A8: =+LargeRoundHay!A3 -> Coastal Bermudagrass Hay, Large Bales | B8: =+LargeRoundHay!E7 -> 0 | C8: =+LargeRoundHay!YTotRet -> 0 | D8: =+LargeRoundHay!YTTotRet -> 0 | E8: =+LargeRoundHay!YLTotRet -> 0 | G8: =+LargeRoundHay!YTotExp -> 0 | H8: =+LargeRoundHay!YTTotExp -> 0 | I8: =+LargeRoundHay!YLTotExp -> 0 | K8: =+LargeRoundHay!YPrice -> 0 | L8: =+LargeRoundHay!Unit -> Ton | M8: 0 | N8: 0 | O8: 0 | Q8: =+LargeRoundHay!YVarRet -> 0 | R8: =+LargeRoundHay!YTVarRet -> 0 | S8: =+LargeRoundHay!YLVarRet -> 0 | U8: =+LargeRoundHay!YVarExp -> 0 | V8: =+LargeRoundHay!YTVarExp -> 0 | W8: =+LargeRoundHay!YLVarExp -> 0 | Y8: =+LargeRoundHay!YPrice -> 0 | Z8: =+LargeRoundHay!Unit -> Ton | AA8: 0 | AB8: 0 | AC8: 0
A9: =+SmallSquareHay!A3 -> Coastal Bermudagrass Hay, Small Square Bales (60 lbs.) | B9: =+SmallSquareHay!E7 -> 0 | C9: =+SmallSquareHay!YTotRet -> 0 | D9: =+SmallSquareHay!YTTotRet -> 0 | E9: =+SmallSquareHay!YLTotRet -> 0 | G9: =+SmallSquareHay!YTotExp -> 0 | H9: =+SmallSquareHay!YTTotExp -> 0 | I9: =+SmallSquareHay!YLTotExp -> 0 | K9: =+SmallSquareHay!YPrice -> 0 | L9: =+SmallSquareHay!Unit -> Bale | M9: =+IF($K9=0,0,G9/$K9) -> 0 | N9: 0 | O9: 0 | Q9: =+SmallSquareHay!YVarRet -> 0 | R9: =+SmallSquareHay!YTVarRet -> 0 | S9: =+SmallSquareHay!YLVarRet -> 0 | U9: =+SmallSquareHay!YVarExp -> 0 | V9: =+SmallSquareHay!YTVarExp -> 0 | W9: =+SmallSquareHay!YLVarExp -> 0 | Y9: =+SmallSquareHay!YPrice -> 0 | Z9: =+SmallSquareHay!Unit -> Bale | AA9: =+IF($K9=0,0,U9/$K9) -> 0 | AB9: 0 | AC9: 0
A10: =+CoastalPasture!A3 -> Coastal Bermudagrass Pasture Grazing | B10: =+CoastalPasture!E7 -> 0 | C10: =+CoastalPasture!YTotRet -> 0 | D10: =+CoastalPasture!YTTotRet -> 0 | E10: =+CoastalPasture!YLTotRet -> 0 | G10: =+CoastalPasture!YTotExp -> 0 | H10: =+CoastalPasture!YTTotExp -> 0 | I10: =+CoastalPasture!YLTotExp -> 0 | K10: =+CoastalPasture!YPrice -> 0 | L10: =+CoastalPasture!Unit ->  | M10: 0 | N10: 0 | O10: 0 | Q10: =+CoastalPasture!YVarRet -> 0 | R10: =+CoastalPasture!YTVarRet -> 0 | S10: =+CoastalPasture!YLVarRet -> 0 | U10: =+CoastalPasture!YVarExp -> 0 | V10: =+CoastalPasture!YTVarExp -> 0 | W10: =+CoastalPasture!YLVarExp -> 0 | Y10: =+CoastalPasture!YPrice -> 0 | Z10: =+CoastalPasture!Unit ->  | AA10: 0 | AB10: 0 | AC10: 0
A11: =+CoastalOverseed!A3 -> Coastal Bermudagrass Pasture, Overseeded Rye and Ryegrass | B11: =+CoastalOverseed!E7 -> 0 | C11: =+CoastalOverseed!YTotRet -> 0 | D11: =+CoastalOverseed!YTTotRet -> 0 | E11: =+CoastalOverseed!YLTotRet -> 0 | G11: =+CoastalOverseed!YTotExp -> 0 | H11: =+CoastalOverseed!YTTotExp -> 0 | I11: =+CoastalOverseed!YLTotExp -> 0 | K11: =+CoastalOverseed!YPrice -> 0 | L11: =+CoastalOverseed!Unit ->  | M11: =+IF($K11=0,0,G11/$K11) -> 0 | N11: =+IF($K11=0,0,H11/$K11) -> 0 | O11: =+IF($K11=0,0,I11/$K11) -> 0 | Q11: =+CoastalOverseed!YVarRet -> 0 | R11: =+CoastalOverseed!YTVarRet -> 0 | S11: =+CoastalOverseed!YLVarRet -> 0 | U11: =+CoastalOverseed!YVarExp -> 0 | V11: =+CoastalOverseed!YTVarExp -> 0 | W11: =+CoastalOverseed!YLVarExp -> 0 | Y11: =+CoastalOverseed!YPrice -> 0 | Z11: =+CoastalOverseed!Unit ->  | AA11: =+IF($K11=0,0,U11/$K11) -> 0 | AB11: =+IF($K11=0,0,V11/$K11) -> 0 | AC11: =+IF($K11=0,0,W11/$K11) -> 0
A13: LIVESTOCK
A15: =+CowCalf!A3 -> Cow-Calf Production | B15: =+CowCalf!E7 -> 0 | C15: =+CowCalf!YTotRet -> 0 | G15: =+CowCalf!YTotExp -> 0 | K15: =+CowCalf!YPrice -> 0 | L15: =+CowCalf!Unit -> CWT | M15: =+IF($K15=0,0,G15/$K15) -> 0 | Q15: =+CowCalf!YVarRet -> 0 | U15: =+CowCalf!YVarExp -> 0 | Y15: =+CowCalf!YPrice -> 0 | Z15: =+CowCalf!Unit -> CWT | AA15: =+IF($K15=0,0,U15/$K15) -> 0
